{"text_format":"1","workbook":"xlsx","n_sheets":5,"sheets":["Accueil","Liste compétiteurs","Encadrement","liste_clubs","deja_participe"],"not_rendered":{"charts":0,"images":5,"macros":1,"external_links":0,"defined_names":11,"comments":1,"pivot_tables":0},"unopened":[],"bounds":{"document_bytes":16777216,"sheet_cells":100000,"rows_first":2000,"rows_last":500,"rows_between":2000,"halvings":0,"cell_chars":16384,"cell_head_chars":4096},"cells_cut":0,"cells_raw":0,"read":"whole","date_system":"1900"}

{"sheet":"Accueil","index":0,"n_rows":26,"n_cols":6,"rows_kept":26,"cut":false,"hidden":false,"merged":[[4,3,4,5],[16,2,16,3],[24,5,24,8],[6,3,6,5],[8,3,8,5],[15,3,15,5],[17,3,17,5],[13,2,13,6]]}
[]
[]
[]
[]
[null,null,null,"COMPÉTITION"]
[]
[null,null,null,"ENFANTS & ADULTES"]
[]
[null,null,null,"TECHNIQUE & COMBAT"]
[]
[]
[]
[]
[null,null,"Complexe Sportif GASTON REBUFFAT"]
[]
[null,null,null,"Allée Jean de Florette"]
[]
[null,null,null,"95120 ERMONT"]
[]
["Rappel : documents à nous transmettre dès que possible et le dimanche 29 mai 2022 au plus tard"]
["Entrée gratuite pour les juges et arbitres"]
["Inscription compétiteur 4€"]
["Entrée public 3 €, Forfait samedi et dimanche 5 €"]
["Repas du dimanche midi fourni par le club organisateur pour les juges et arbitres"]
["Vente de boissons et de sandwichs sur place",null,null,null,null,"Merci de signaler toutes erreurs ou disfonctionnement   (Cliquer ici)"]
["Sur demande justificatif de paiement sur place pour les associations"]

{"sheet":"Liste compétiteurs","index":1,"n_rows":4,"n_cols":21,"rows_kept":4,"cut":false,"hidden":false,"merged":[[0,0,0,12],[0,13,0,20]]}
["compétiteur",null,null,null,null,null,null,null,null,null,null,null,null,"RESPONSABLE"]
["Noms","Prénoms","Date de naissance","Sexe","Nbr d' année de pratique","Ceinture\nnoire","N°\nLicence","Bai Quyen","Bai Vu khi","Quyen\nSynchro\nMains Nues\nou Armes\nN° équipe","Quyen\nSynchro\nArmes\nN° équipe","Handiviet","Poids","Club","N° Affiliation Club","Nom\nResponsable","Prénom\nResponsable","Adresse\nResponsable","Téléphone\nResponsable","E-Mail\nResponsable","Acceptation Règlement"]
[]
["Exemple:\nRAUX","Exemple:\nMarc","Exemple:\n08/04/1959","Exemple:\nM","Exemple:\n58","Exemple:\nOUI","Exemple:\n10518378U","Exemple:\nOUI","Exemple:\nOUI","Exemple:\n2","Exemple:\n2","Exemple:\nOUI","Exemple:\n88","Exemple:\nErmont - Arts Martiaux Ermontois","Exemple:\n950677","Exemple:\nRAUX","Exemple:\nMarc","Exemple:\n16, rue de l'Eglise 95120 Ermont","Exemple:\n06 86 12 95 33","Exemple:\nraux.marc@yahoo.fr","Exemple:\nOUI"]

{"sheet":"Encadrement","index":2,"n_rows":4,"n_cols":13,"rows_kept":4,"cut":false,"hidden":false,"merged":[[0,1,0,3],[0,7,0,9],[0,10,0,12],[0,4,0,6]]}
[null,"Responsable",null,null,"Encadrement",null,null,"Arbitre",null,null,"Administrateur"]
["Club","Nom","Prénom","Accepte le\nrèglement","Noms","Prénom","Pratiquant","Samedi","Dimanche\nMatin","Dimanche\nAprès Midi","Samedi","Dimanche\nmatin","Dimanche\naprès midi"]
[]
["Exemple:\nErmont - Arts Martiaux Ermontois","Exemple:\nRAUX","Exemple:\nMarc","Exemple:\nOUI","Exemple:\nRIVET","Exemple:\nAurélie","Exemple:\nOUI","Exemple:\nNON","Exemple:\nOUI","Exemple:\nOUI","Exemple:\nNON","Exemple:\nOUI","Exemple:\nOUI"]

{"sheet":"liste_clubs","index":3,"n_rows":41,"n_cols":7,"rows_kept":41,"cut":false,"hidden":true,"merged":[]}
["Club","N° Affiliation Club","Nom\nResponsable","Prénom\nResponsable","Adresse\nResponsable","Téléphone\nResponsable","E-Mail\nResponsable"]
["Ajaccio - Lam Son",200618,"NIEDDU","Antoine","A Castagnola 2 Allée des Aloes 20167 Alata",698317009,"lamsonvodaoajaccio@gmail.com"]
["Argenteuil - Siu Lam Self Défense",950111,"BOSCHETTI","Bruno","4, Square Anjou Argenteuil",626858506,"hungboss1@hotmail.com"]
["Aubervilliers - CMA Qwan Ki Do",930696,"LATULIPE ","Jacky","8, Allée des Lilas 93300 Aubervilliers",330307337,"v.abesdris@gmail.com"]
["Aulnay - Phi Bao Club",930610,"PERYKASZA","Christian","2, Rue de Dijon 93600 Aulnay sous Bois",673201811,"pery1@free.fr"]
["Aulnay Sous Bois - Thieu Lam Cong Phu",930672,"VIGUIER","René","14 avenue des prévoyants 93600 Aulnay sous bois",663792146,"thieulam_aulnay@yahoo.fr"]
["Brest - CQKD",290625,"CRIGHTON","Sébastien","1, Rue Ernest Renan 29200 Brest",634517948,"sebastien.crighton@gmail.com"]
["Cergy - Viet Võ Ðao",950084,"DOAN VAN PHE","Thanh Ba","1, Les Rayes Brunes 95610 Éragny sur Oise",650528866,"t.ba@live.fr"]
["Cergy - Yi-King Do",950103,"ARAB","Samir","65, Avenue du Bontemps 95800 Cergy",613843367,"arabsamir@gmail.com"]
["Créteil - ASCC QWAN KI DO",940000,"KHELIFI ","Fadel","14, Rue du Massif Central 94800 Villejuif",662919784,"qwankido.ascc@gmail.com"]
["Deuil Montmorency - Kim Ho Hai",950662,"DINH","Michel","17, Impasse Lise de Harme 95350 St Brice Sous Forêt",624471615,"kimhohai@gmail.com"]
["Éragny - École du Dragon Hai",950643,"LESOIL","Stéphane","La Challe Pourpre 95610 Éragny sur Oise",629115656,"ecoledudragon@voila.fr"]
["Ermont - Arts Martiaux Ermontois",950604,"RAUX","Marc","16, rue de l'Eglise 95120 Ermont",686129533,"rauxm@yahoo.fr"]
["Évry - VVD - SCA 2000",910679,"MAURY","Candice","Évry",678575967,"vvd.evry@gmail.com"]
["Fontenay sous Bois - Bac Long",940058,"ALLA","Vincent","1, Rue des Ormes 94120 Fontenay sous Bois",682767987,"vincent.alla@vanlong.fr"]
["Franconville - Les Dragons de la Récré",950633,"HUDSON","Jacky",null,662807447,"jackydragons@yahoo.f"]
["Gignac - Phuong Dang Vo Dao",null,"AUSILIA","David","34150 Gignac",608005213]
["Jacou - Lam Son Vo Dao",340740,"TRAN VAN BA","Christophe","907, Avenue de Fes - Résidence Comedia d'O",675359622,"christophe.tranvanba@gmail.com"]
["Jouy le Moutier - Yi-King-Do",950679,"GRANGER","Michel","46, Rue du Val Glatigny 95280 Jouy le Moutier",684958409,"granger.m@free.fr"]
["Juvisy- Le Tigre Jaune",910746,"NYEMB","Jonas Hervé","50, Avenue de le Terrasse 91260 JUVISY SUR ORGE","15 01 31 02 17","jonas.herve.nyemb@gmail.com"]
["La Courneuve - Võ Son Long",930644,"SONGUE","Idriss","12, rue St-Yves 75014 Paris",616765921,"idriss_song@yahoo.fr"]
["La Frette-sur-Seine - Yi-King Do Long Trung Thanh",950734,"SABARLY","Frédéric","121 Boulevard de Pontoise 95530 La Frette-sur-Seine",671198305,"frederic_sabarly@hotmail.fr"]
["l'Haÿ-les-roses - Tayson Vo Dao",940654,"Me  PHAN TOAN","Chau",null,null,"cphantoan@yahoo.fr"]
["Limoges - Vovinam VVD",870640,"MASGNAUD","Francis","17, Bd Bel Air 87000 Limoges",632492999,"masgnaud@laposte.net"]
["Méry sur Oise - Union Việt Võ Ðạo Méry",950636,"LEBELT","Jean-François","13, Rue du Muguet  95540 Méry Sur Oise",684519885,"contact@uvvdm.fr"]
["Montigny-les-Cormeilles - Võ Quyen Ðao",950112,"LE PEUCH","Jacky","8, Impasse Claude Bonne 95130 Franconville",616351474,"jackylepeuch2@yahoo.fr"]
["Montpellier - Lam Son Võ Dao",340652,"TOURET","Stéphanie","23, bis Rue des Chasseurs 34070 Montpellier",664108131,"touret.stephanie@gmail.com"]
["Morangis - TUVB Viet Vo Dao",910030,"NOURAOUI","Mohand","16, Avenue des Cerisiers 91420 Morangis",611252990,"mohandn@wanadoo.fr"]
["Ollioules - La Licorne","0830108","BERTOLUCCI","Antony","Rue François Paul La Valette du Var 83160",771223069,"bertolucci.antony@gmail.com"]
["Palaiseau Polytechnique - Lam Son Vo Dao",910623,"TRUONG","Alain","Rue Planchette 77090 Collégien",685731093,"alain.truong@polytechnique.edu"]
["Paris - École du Tigre Bleu",350738,"BLOES","Bruno","14, Rue GANDON - 75013 PARIS",664859072,"brunobloes@hotmail.fr"]
["Penn Ar Bed - Penchak Silat",290647,"JESEL","Sébastien"]
["Plessis Grammoire - Lam Son Vo Dao",490615,"LEPORS","Franck","5, Square des Cerisiers 49124 Plessis Grammoire",662768404,"franck.lepors@socotec.fr"]
["Poissy - Lam Son Vo Dao",780717,"DA SILVA","Patrick","1 Allée André Chénier - Apt 46 - 78260 Achères",618838637,"ecole.lamson.poissy@gmail.com"]
["Pontcarré - Lam Son Vo Dao",770718,"SARDA","Olivier","10, Rue du 4 Août 77200 Torcy",671368506,"lamson.pontcarre@gmail.com"]
["Saint Barthélémy d'Anjou - Lam Son Vo Dao",490032,"GERMOND","Philippe","5, Rue des Sarments 49190 Rochefort sur Loire",662632623,"philippe.germond1@bbox.fr"]
["Saint-Gratien",950677,"RIAUDEL","Philippe","10, Chemin autour du Bois 95130 Le Plessis Bouchard",675082808,"philippe.riaudel@daimler.com"]
["St Brice Sous Forêt - Kim Ho",950639,"ORBAN","Bruno","81, Boulevard Joseph Wrésinski 95540 Méry sur Oise",662721939,"bruno.0203@free.fr"]
["Suresnes - Võ Cổ Truyền Suresnes",920604,null,null,null,null,"vo_co_truyen_suresnes@yahoo.fr"]
["Verrières le Buisson - TUVB Verrières",910030,"NOURAOUI","Mohand","Gymnase de la vallée à la dame Verrières le Buisson",611252990,"mohandn@wanadoo.fr"]
["Wimille - Phuong Long Vo Dao",null,"TINTILLIER","David","Wimille",634323795,"thierry.delpierre@wanadoo.fr"]

{"sheet":"deja_participe","index":4,"n_rows":674,"n_cols":9,"rows_kept":674,"cut":false,"hidden":true,"merged":[]}
["Nom & Prénom","Noms","Prénoms","Date\nde\nnaissance","Sexe","Ceinture \nnoire","N°\nLicence","Club","N° \nAffiliation\nClub"]
[{"$f":"CONCATENATE(B2,\" \",C2)","v":"AISSAOUI Anthony"},"AISSAOUI","Anthony","1990-05-22","M",null,"10487268E","Argenteuil - Siu Lam Self Défense",950111]
["ARAB Ayoub","ARAB","Ayoub","2002-09-11","M",null,"10861251H","Argenteuil - Siu Lam Self Défense",950111]
["BEN AMARA Kerim","BEN AMARA","Kerim","1975-06-16","M",null,"10529811W","Argenteuil - Siu Lam Self Défense",950111]
["BOSCHETTI Bruno","BOSCHETTI","Bruno","1975-05-20","M","OUI","08916972L","Argenteuil - Siu Lam Self Défense",950111]
["CHANGUEL Eilias","CHANGUEL","Eilias","1989-09-27","M",null,"10517007E","Argenteuil - Siu Lam Self Défense",950111]
["CRUNEL Jean claude","CRUNEL","Jean claude","1964-08-28","M",null,"10783742J","Argenteuil - Siu Lam Self Défense",950111]
["GADJO Michael","GADJO","Michael","1978-11-13","M",null,"10783744L","Argenteuil - Siu Lam Self Défense",950111]
["GHERGHOUT Saber","GHERGHOUT","Saber","2002-02-08","M",null,"10861238T","Argenteuil - Siu Lam Self Défense",950111]
["KERBAA Yanis","KERBAA","Yanis","2000-05-23","M",null,"10861246C","Argenteuil - Siu Lam Self Défense",950111]
["SAIDI Sonia","SAIDI","Sonia","1988-08-15","F",null,"10677121R","Argenteuil - Siu Lam Self Défense",950111]
["TAIEB Benjamin","TAIEB","Benjamin","1981-07-05","M",null,"10861265X","Argenteuil - Siu Lam Self Défense",930672]
["YAHIA Imane","YAHIA","Imane","1991-04-06","F",null,"10794218V","Argenteuil - Siu Lam Self Défense",950111]
["ABREU Dylan","ABREU","Dylan","2010-12-20","M",null,"10992904J","Aubervilliers - CMA Qwan Ki Do",930696]
["ABREU Évan","ABREU","Évan","2009-04-09","M",null,"10808655N","Aubervilliers - CMA Qwan Ki Do",930696]
["ABREU MURILLO Enzo","ABREU MURILLO","Enzo","2005-06-10","M",null,"10470387F","Aubervilliers - CMA Qwan Ki Do",930696]
["AKPINAR Bilal","AKPINAR","Bilal","2004-12-31","M",null,"10603714B","Aubervilliers - CMA Qwan Ki Do",930696]
["AMMARI Anissa","AMMARI","Anissa","2000-09-20","F",null,"10429553V","Aubervilliers - CMA Qwan Ki Do",930696]
["ARIBI Allya","ARIBI","Allya","2007-03-20","F",null,"10919495R","Aubervilliers - CMA Qwan Ki Do",930696]
["ASDRAM Yassine","ASDRAM","Yassine","2004-04-24","M",null,"10830556T","Aubervilliers - CMA Qwan Ki Do",930696]
["ASDRAM Zackaria","ASDRAM","Zackaria","2008-10-30","M",null,"10808653L","Aubervilliers - CMA Qwan Ki Do",930696]
["ASSALIT Margot","ASSALIT","Margot","1999-10-22","F",null,"10385038K","Aubervilliers - CMA Qwan Ki Do",930696]
["BENZAID Khadidja","BENZAID","Khadidja","2008-01-24","F",null,"10898397J","Aubervilliers - CMA Qwan Ki Do",930696]
["BENZAID Khalil","BENZAID","Khalil","2009-01-11","M",null,"11138204T","Aubervilliers - CMA Qwan Ki Do",930696]
["BEUF Michael","BEUF","Michael","1995-10-03","M",null,"10301279S","Aubervilliers - CMA Qwan Ki Do",930696]
["BOSSER Florian","BOSSER","Florian","1995-04-12","M",null,"10657983P","Aubervilliers - CMA Qwan Ki Do",930696]
["CHAMEKH Amine","CHAMEKH","Amine","2005-11-22","M",null,"10699511D","Aubervilliers - CMA Qwan Ki Do",930696]
["CHERIF Fares","CHERIF","Fares","2008-09-15","M",null,"10871525A","Aubervilliers - CMA Qwan Ki Do",930696]
["CHERIF Nourhene","CHERIF","Nourhene","2007-01-17","F",null,"10871527C","Aubervilliers - CMA Qwan Ki Do",930696]
["CHOUAOUI Ahmad Youcouf","CHOUAOUI","Ahmad Youcouf","2000-04-28","M",null,"10748368J","Aubervilliers - CMA Qwan Ki Do",930696]
["CHOUAOUI Asya","CHOUAOUI","Asya","2003-10-03","F",null,"10808664X","Aubervilliers - CMA Qwan Ki Do",930696]
["CHOUAOUI Selma","CHOUAOUI","Selma","2006-03-17","F",null,"10808665Y","Aubervilliers - CMA Qwan Ki Do",930696]
["CHOUAOUI Yanyounis","CHOUAOUI","Yanyounis","1998-09-20","M",null,"10748367H","Aubervilliers - CMA Qwan Ki Do",930696]
["CIL Devran","CIL","Devran","1999-12-02","M",null,"10342174T","Aubervilliers - CMA Qwan Ki Do",930696]
["CLEMENT Syrine","CLEMENT","Syrine","2006-06-01","F",null,"10919504B","Aubervilliers - CMA Qwan Ki Do",930696]
["CORPINOT Mailine","CORPINOT","Mailine","2005-09-16","F",null,"10772582D","Aubervilliers - CMA Qwan Ki Do",930696]
["CORPINOT Ylan","CORPINOT","Ylan","2009-04-18","M",null,"10895146A","Aubervilliers - CMA Qwan Ki Do",930696]
["DESHAYE Antony","DESHAYE","Antony","2004-09-25","M",null,"10770566M","Aubervilliers - CMA Qwan Ki Do",930696]
["DESHAYE Camilia","DESHAYE","Camilia","2007-02-02","F",null,"10770565L","Aubervilliers - CMA Qwan Ki Do",930696]
["DIEUDONNE Junior","DIEUDONNE","Junior","1982-10-15","M","OUI",10401607,"Aubervilliers - CMA Qwan Ki Do",930696]
["DUBOIS-FRECINAT Jillys","DUBOIS-FRECINAT","Jillys","2006-09-28","M",null,"11084585M","Aubervilliers - CMA Qwan Ki Do",930696]
["EL MEJAI Fatma","EL MEJAI","Fatma","2004-05-17","F",null,"10513274W","Aubervilliers - CMA Qwan Ki Do",930696]
["ELHAJI Taoufik","ELHAJI","Taoufik","1998-10-22","M",null,"10782587D","Aubervilliers - CMA Qwan Ki Do",930696]
["ELMEJAI Fatma","ELMEJAI","Fatma","2004-05-17","F",null,"10513274W","Aubervilliers - CMA Qwan Ki Do",930696]
["ELMEJAI Souha","ELMEJAI","Souha","2006-10-02","F",null,"10623237X","Aubervilliers - CMA Qwan Ki Do",930696]
["ELMEJAI Tasmime","ELMEJAI","Tasmime","2009-12-11","F",null,"10919512K","Aubervilliers - CMA Qwan Ki Do",930696]
["ELMEJAI Tasmin","ELMEJAI","Tasmin","2005-10-14","F",null,"10919512K","Aubervilliers - CMA Qwan Ki Do",930696]
["ELSAYED Karim","ELSAYED","Karim","2003-04-01","M",null,"10710560F","Aubervilliers - CMA Qwan Ki Do",930696]
["ELSAYED Khaled","ELSAYED","Khaled","2006-11-28","M",null,"10770562H","Aubervilliers - CMA Qwan Ki Do",930696]
["FERRO THARAPPEL Gaouri Leone","FERRO THARAPPEL","Gaouri Leone","2008-05-16","F",null,"10828216A","Aubervilliers - CMA Qwan Ki Do",930696]
["FERRO THARAPPEL Irmadey","FERRO THARAPPEL","Irmadey","2005-10-14","F",null,"10828215Y","Aubervilliers - CMA Qwan Ki Do",930696]
["FERRO THARAPPEL Léone","FERRO THARAPPEL","Léone","2008-05-16","F",null,"10828216A","Aubervilliers - CMA Qwan Ki Do",930696]
["GHOZZI Khalil","GHOZZI","Khalil","2004-08-28","M",null,"10523373K","Aubervilliers - CMA Qwan Ki Do",930696]
["GOUCEM Arris","GOUCEM","Arris","2009-02-20","M",null,"10861608V","Aubervilliers - CMA Qwan Ki Do",930696]
["GOUCEM Cylia","GOUCEM","Cylia","2006-11-02","F",null,"10861607U","Aubervilliers - CMA Qwan Ki Do",930696]
["HAJJI Chaima","HAJJI","Chaima","2004-04-18","F",null,"10491847G","Aubervilliers - CMA Qwan Ki Do",930696]
["HAJJI Walid","HAJJI","Walid","2002-04-24","M",null,"10421755U","Aubervilliers - CMA Qwan Ki Do",930696]
["HERITIER Matthieu","HERITIER","Matthieu","2000-04-07","M",null,"10770564K","Aubervilliers - CMA Qwan Ki Do",930696]
["KAYAT Nahida","KAYAT","Nahida","2000-11-09","F",null,"10686812A","Aubervilliers - CMA Qwan Ki Do",930696]
["LAIZ Idris","LAIZ","Idris","2003-02-05","M",null,"10385035G","Aubervilliers - CMA Qwan Ki Do",930696]
["LAIZ Medhi","LAIZ","Medhi","2004-10-18","M",null,"10470404Y","Aubervilliers - CMA Qwan Ki Do",930696]
["LAIZ Nawel","LAIZ","Nawel","2004-10-18","F",null,"10694952X","Aubervilliers - CMA Qwan Ki Do",930696]
["LAIZ Sarah","LAIZ","Sarah","2006-02-23","F",null,"10694953Y","Aubervilliers - CMA Qwan Ki Do",930696]
["LATULIPE Jacky","LATULIPE","Jacky","1987-11-08","M","OUI","10288363D","Aubervilliers - CMA Qwan Ki Do",930696]
["MAROUGH Sofiane","MAROUGH","Sofiane","2001-02-07","M",null,"10676570S","Aubervilliers - CMA Qwan Ki Do",930696]
[{"$f":"CONCATENATE(B66,\" \",C66)","v":"MESSAOUDENE Nour"},"MESSAOUDENE","Nour","2005-08-30","F",null,"10808669D","Aubervilliers - CMA Qwan Ki Do",930696]
["MULLER Cloé","MULLER","Cloé","2011-01-01","F",null,"11128273Y","Aubervilliers - CMA Qwan Ki Do",930696]
["MULLER Quentin","MULLER","Quentin","2007-09-23","M",null,"10828217B","Aubervilliers - CMA Qwan Ki Do",930696]
["PEREIRA Kenzo","PEREIRA","Kenzo","2000-07-21","M",null,"10348059Q","Aubervilliers - CMA Qwan Ki Do",930696]
["SAFER Khedoudja","SAFER","Khedoudja","2000-04-03","F",null,"10491833R","Aubervilliers - CMA Qwan Ki Do",930696]
["SAFER Mohamed","SAFER","Mohamed","2001-07-27","M",null,"10491837V","Aubervilliers - CMA Qwan Ki Do",930696]
["SCHMIT Celya","SCHMIT","Celya","2007-12-09","F",null,"10731690F","Aubervilliers - CMA Qwan Ki Do",930696]
["SCHMIT Leina","SCHMIT","Leina","2005-10-30","F",null,"10731689E","Aubervilliers - CMA Qwan Ki Do",930696]
["SOUKKOUNA Demba","SOUKKOUNA","Demba","2003-02-06","M",null,"10598013E","Aubervilliers - CMA Qwan Ki Do",930696]
["TAPE Jassia","TAPE","Jassia","2006-04-16","M",null,"11002155P","Aubervilliers - CMA Qwan Ki Do",930696]
["TARTROU  Jean-Gauthier","TARTROU ","Jean-Gauthier","2003-03-29","M",null,"10385027X","Aubervilliers - CMA Qwan Ki Do",930696]
["THIMON Ilhena","THIMON","Ilhena","2003-05-19","F",null,"10342173S","Aubervilliers - CMA Qwan Ki Do",930696]
["TOURNEPICHE  Nicolas","TOURNEPICHE ","Nicolas","2004-08-04","M",null,"10470398S","Aubervilliers - CMA Qwan Ki Do",930696]
["YAHMI Riwane","YAHMI","Riwane","2000-11-23","M",null,"11067657M","Aubervilliers - CMA Qwan Ki Do",930696]
["ZENAINI Nachoa","ZENAINI","Nachoa","2000-03-21","F",null,"10669129E","Aubervilliers - CMA Qwan Ki Do",930696]
["ABREU EVAN","ABREU","EVAN","2009-04-09","M",null,"10808655N","Aubervilliers - Qwan Ki Do CMA",930696]
["ELMEJAI TASNIME","ELMEJAI","TASNIME","2009-12-11","F",null,"10919512K","Aubervilliers - Qwan Ki Do CMA",930696]
["PERYKASZA Christian","PERYKASZA","Christian","1953-06-08","M","OUI","01533962A","Aulnay - Phi Bao Club",930610]
["DA SILVA Gianni","DA SILVA","Gianni","2008-06-10","M",null,"11093791T","Aulnay Sous Bois - Thieu Lam Cong Phu",930672]
["SAADI Yasmine","SAADI","Yasmine","2005-08-30","F",null,"10866745E","Aulnay Sous Bois - Thieu Lam Cong Phu",930672]
["SAUZEAU RAMEAUX Sixtine","SAUZEAU RAMEAUX","Sixtine","2007-12-15","F",null,"11042142D","Aulnay Sous Bois - Thieu Lam Cong Phu",930672]
["VIGUIER Apolline","VIGUIER","Apolline","2009-11-26","F",null,"10929447J","Aulnay Sous Bois - Thieu Lam Cong Phu",930672]
["VIGUIER Thomas","VIGUIER","Thomas","2001-10-11","M",null,"10720228W","Aulnay Sous Bois - Thieu Lam Cong Phu",930672]
["VIGUIER Tiphanie","VIGUIER","Tiphanie","2005-07-15","F",null,"10841266K","Aulnay Sous Bois - Thieu Lam Cong Phu",930672]
["KEBAILI Haytham","KEBAILI","Haytham","2005-01-25","M",null,"10599842T","Cergy - Viet Võ Ðao",950084]
["AGDAR Elhoucine","AGDAR","Elhoucine","1987-03-02","M",null,"10518378U","Cergy - Yi-King Do",950103]
["AIT OUAKLI Aaliyah","AIT OUAKLI","Aaliyah","2009-08-22","F",null,"11064155F","Cergy - Yi-King Do",950103]
["Ait-Baha Hilal","Ait-Baha","Hilal","2006-09-08","M",null,"10757958H","Cergy - Yi-King Do",950103]
["AIT-BAHA Ilal","AIT-BAHA","Ilal","2006-09-08","M",null,"10757958H","Cergy - Yi-King Do",950103]
["AIT-BAHA Layal","AIT-BAHA","Layal","2006-09-08","F",null,"10757962M","Cergy - Yi-King Do",950103]
["AKE Lauryne","AKE","Lauryne","2011-05-05","F",null,"11019086S","Cergy - Yi-King Do",950103]
["AMELLAL Sarah","AMELLAL","Sarah","2000-12-28","F",null,"10435332C","Cergy - Yi-King Do",950103]
["ANDJOUH Farid","ANDJOUH","Farid","1982-07-30","M",null,"10732088N","Cergy - Yi-King Do",950103]
["AUVOLAT Quentin","AUVOLAT","Quentin","2006-04-20","M",null,"10826547L","Cergy - Yi-King Do",950103]
["BENMAMAS Yacine","BENMAMAS","Yacine","2009-03-10","M",null,"11018843D","Cergy - Yi-King Do",950103]
["BERRAJAA Jahid","BERRAJAA","Jahid","2010-10-14","M",null,"11019273V","Cergy - Yi-King Do",950103]
["BERRAJAA Jibril","BERRAJAA","Jibril","2005-06-27","M",null,"11018895K","Cergy - Yi-King Do",950103]
["BERTONI Bastien","BERTONI","Bastien","1988-04-19","M",null,"10320646T","Cergy - Yi-King Do",950103]
["BOUCHET Emmanuel","BOUCHET","Emmanuel","1979-12-03","M","OUI","10142219B","Cergy - Yi-King Do",950103]
["BOURGEOIS Baptiste","BOURGEOIS","Baptiste","2005-08-03","M",null,"11121582B","Cergy - Yi-King Do",950103]
["BOUVART Sheridan","BOUVART","Sheridan","2002-06-09","M",null,"10341828S","Cergy - Yi-King Do",950103]
["COULIBALY Lassiné","COULIBALY","Lassiné","1989-05-21","M",null,"10789484A","Cergy - Yi-King Do",950103]
["DANYS Cyrielle","DANYS","Cyrielle","2009-01-02","F",null,"10826412P","Cergy - Yi-King Do",950103]
["DELGADO LOPES Sidnei","DELGADO LOPES","Sidnei","1985-04-04","M",null,"10491955Y","Cergy - Yi-King Do",950103]
["DJELLAL Medhi","DJELLAL","Medhi","2000-03-17","M",null,"10472007R","Cergy - Yi-King Do",950103]
["DOMINGUES Thomas","DOMINGUES","Thomas","2004-01-26","M",null,"10826418V","Cergy - Yi-King Do",950103]
["DUVAL Clémentine","DUVAL","Clémentine","1995-11-29","F",null,"10320675A","Cergy - Yi-King Do",950103]
["GARNIER Kévin","GARNIER","Kévin","1995-06-14","M",null,"10757942Q","Cergy - Yi-King Do",950103]
["GARRY Hafsa","GARRY","Hafsa","2011-09-30","F",null,"11121628B","Cergy - Yi-King Do",950103]
["GAUTIER Adam","GAUTIER","Adam","2009-07-21","M",null,"10836962D","Cergy - Yi-King Do",950103]
["GERMAIN Jackson","GERMAIN","Jackson","2008-03-31","M",null,"11018920M","Cergy - Yi-King Do",950103]
["GRANIER Raphael","GRANIER","Raphael","2010-02-23","M",null,"11019093A","Cergy - Yi-King Do",950103]
["HADDAOUI Adam","HADDAOUI","Adam","2009-08-15","M",null,"11019263K","Cergy - Yi-King Do",950103]
["HADDAOUI Noé","HADDAOUI","Noé","2011-11-21","M",null,"11019257D","Cergy - Yi-King Do",950103]
["HAZAMY Shahin","HAZAMY","Shahin","1995-08-22","M",null,"10826531T","Cergy - Yi-King Do",950103]
["HAZAMY Shayan","HAZAMY","Shayan","2001-11-25","M",null,"10757979F","Cergy - Yi-King Do",950103]
["HEUGEBAERT Ambre","HEUGEBAERT","Ambre","2013-07-12","F",null,"11121649Y","Cergy - Yi-King Do",950103]
["HEUGEBAERT Axel","HEUGEBAERT","Axel","2005-11-19","M",null,"10826424C","Cergy - Yi-King Do",950103]
["HEUGEBAERT Nathan","HEUGEBAERT","Nathan","2010-05-02","M",null,"10928802H","Cergy - Yi-King Do",950103]
["IBROUCHENE Mehdi","IBROUCHENE","Mehdi","2009-02-10","M",null,"10975657M","Cergy - Yi-King Do",950103]
["IMAMI Farouk","IMAMI","Farouk","1990-05-07","M",null,"09507714W","Cergy - Yi-King Do",950103]
["KEDOTE Dayane","KEDOTE","Dayane","2005-05-10","M",null,"10663642Q","Cergy - Yi-King Do",950103]
["LACHHAB Ikram","LACHHAB","Ikram","2006-12-30","F",null,"10760736C","Cergy - Yi-King Do",950103]
["LACHHAB Karim","LACHHAB","Karim","2008-04-14","M",null,"10757945T","Cergy - Yi-King Do",950103]
[{"$f":"CONCATENATE(B130,\" \",C130)","v":"LAHJAR Mohamed"},"LAHJAR","Mohamed","1975-05-19","M",null,"10652832p","Cergy - Yi-King Do",950103]
["LAUNAY Tony","LAUNAY","Tony","2001-05-12","M",null,"10650977Y","Cergy - Yi-King Do",950103]
["LEGUILLON Corentin","LEGUILLON","Corentin","2009-01-11","M",null,"10757953C","Cergy - Yi-King Do",950103]
["LORTHE Amanie","LORTHE","Amanie","2012-01-15","F",null,"11121610G","Cergy - Yi-King Do",950103]
["MADI Pierre","MADI","Pierre","2002-10-03","M","OUI","10320699B","Cergy - Yi-King Do",950103]
["MAFFLI Julien","MAFFLI","Julien","1987-04-16","M",null,"10204898F","Cergy - Yi-King Do",950103]
["MANICORD Nicolas","MANICORD","Nicolas","2005-08-05","M",null,"10664654Q","Cergy - Yi-King Do",950103]
["MANICORD Rémy","MANICORD","Rémy","2003-10-01","M",null,"10664649K","Cergy - Yi-King Do",950103]
["MENAGE CHAUVIN Emma","MENAGE CHAUVIN","Emma","2010-04-24","F",null,"10862680L","Cergy - Yi-King Do",950103]
["NGUYEN Tran Tu Thien","NGUYEN","Tran Tu Thien","1977-02-09","M",null,"10826568J","Cergy - Yi-King Do",950103]
["NGUYEN Yanis","NGUYEN","Yanis","2009-12-11","M",null,"10830339H","Cergy - Yi-King Do",950103]
["NIAKATE Salim","NIAKATE","Salim","2012-03-31","M",null,"11121634H","Cergy - Yi-King Do",950103]
["OUATMANI Lina","OUATMANI","Lina","2011-09-30","F",null,"11121563F","Cergy - Yi-King Do",950103]
["PENSEDENT Nolan","PENSEDENT","Nolan","2010-11-09","M",null,"11018910B","Cergy - Yi-King Do",950103]
["PERRICHOT Tristan","PERRICHOT","Tristan","2005-08-29","M",null,"10562856R","Cergy - Yi-King Do",950103]
["ROUX Erwan","ROUX","Erwan","2002-08-05","M",null,"10732131K","Cergy - Yi-King Do",950103]
["ROUX Raphaël","ROUX","Raphaël","2004-06-16","M",null,"10732130J","Cergy - Yi-King Do",950103]
["SANCHES TAVARES Brandon","SANCHES TAVARES","Brandon","1997-11-26","M",null,"10491950T","Cergy - Yi-King Do",950103]
["SEBIH Samy","SEBIH","Samy","2006-11-18","M",null,"10826398Y","Cergy - Yi-King Do",950103]
["SINOU Krishna","SINOU","Krishna","2003-08-19","M",null,"10651018T","Cergy - Yi-King Do",950103]
["SOK Oliver","SOK","Oliver","1990-10-11","M",null,"10757943R","Cergy - Yi-King Do",950103]
["SOOSAIPILLAI Fethericsan","SOOSAIPILLAI","Fethericsan","1990-12-24","M",null,"09610063V","Cergy - Yi-King Do",950103]
["SOOSAIPILLAI Rolingsan","SOOSAIPILLAI","Rolingsan","1994-10-18","M",null,"09610064W","Cergy - Yi-King Do",950103]
["TALL Oury","TALL","Oury","1999-09-03","M",null,"10737521t","Cergy - Yi-King Do",950103]
["TETU Marine","TETU","Marine","1994-12-29","F",null,"10320665P","Cergy - Yi-King Do",950103]
["TUHIMUTU Zohra","TUHIMUTU","Zohra","1973-04-13","F","OUI","09021538U","Cergy - Yi-King Do",950103]
["WEBER Zikkoz","WEBER","Zikkoz","2006-08-31","M",null,"10732147c","Cergy - Yi-King Do",950103]
["BLANCHET Côme","BLANCHET","Côme","2003-09-16","M",null,"10453568Y","Créteil - ASCC QWAN KI DO",940000]
["BLANCHET Guillaume","BLANCHET","Guillaume","1974-12-19","M",null,"09136477D","Créteil - ASCC QWAN KI DO",940000]
["GUEYE Moustapha","GUEYE","Moustapha","1985-12-21","M",null,"10526813N","Créteil - ASCC QWAN KI DO",940000]
["MULLER Aurore","MULLER","Aurore","1980-02-21","F",null,"10453569A","Créteil - ASCC QWAN KI DO",940000]
["BALLI Nagati","BALLI","Nagati","1988-11-02","M",null,"10501076N","Deuil Montmorency - Kim Ho Hai",950662]
["BERREDJOUH Bader","BERREDJOUH","Bader","1983-01-01","M",null,"09980566K","Deuil Montmorency - Kim Ho Hai",950662]
["BLOTNY Morgan","BLOTNY","Morgan","1984-09-10","M",null,"08913953E","Deuil Montmorency - Kim Ho Hai",950662]
["COVET Nicolas","COVET","Nicolas","1985-08-28","M",null,"10501102R","Deuil Montmorency - Kim Ho Hai",950662]
["GRAS Philipe","GRAS","Philipe","1979-01-01","M",null,"10177824C","Deuil Montmorency - Kim Ho Hai",950662]
["HAURE Julien","HAURE","Julien","1979-01-01","M",null,"10115977C","Deuil Montmorency - Kim Ho Hai",950662]
["INGARGOLIA Jean Michel","INGARGOLIA","Jean Michel","1979-07-03","M",null,"10401652T","Deuil Montmorency - Kim Ho Hai",950662]
["LACOSTE Lucas","LACOSTE","Lucas","1992-12-16","M",null,"10501082U","Deuil Montmorency - Kim Ho Hai",950662]
["LEMAIRE Nathan","LEMAIRE","Nathan","1996-11-29","M",null,"10501110A","Deuil Montmorency - Kim Ho Hai",950662]
["MAHFOUFI Salim","MAHFOUFI","Salim","1989-10-08","M",null,"10518008S","Deuil Montmorency - Kim Ho Hai",950662]
["MARCORELLES Bruno","MARCORELLES","Bruno","1996-03-10","M",null,"10518005P","Deuil Montmorency - Kim Ho Hai",950662]
["MILOIS Sylvain","MILOIS","Sylvain","1976-11-08","M",null,"10501072J","Deuil Montmorency - Kim Ho Hai",950662]
["RASSOULI Étienne","RASSOULI","Étienne","1991-06-12","M",null,"10401644K","Deuil Montmorency - Kim Ho Hai",950662]
["RENE Raphaël","RENE","Raphaël","1982-01-16","M",null,"10449935A","Deuil Montmorency - Kim Ho Hai",950662]
["UNLU Ibrahim","UNLU","Ibrahim","1986-01-01","M",null,"10401608V","Deuil Montmorency - Kim Ho Hai",950662]
["ANDRE Sylvain","ANDRE","Sylvain","1985-07-17","M","OUI","09568399J","Éragny - École du Dragon",950643]
["DOPYTALA Michel","DOPYTALA","Michel","1998-09-21","M",null,"10235364V","Éragny - École du Dragon",950643]
["DOREY Alexis","DOREY","Alexis","1979-01-01","M",null,"10733442K","Éragny - École du Dragon",950643]
["GRATALOUP Lucas","GRATALOUP","Lucas","2002-04-05","M",null,"10441903U","Éragny - École du Dragon",950643]
["HERNANDES Luc","HERNANDES","Luc","1999-08-04","M",null,"10235360R","Éragny - École du Dragon",950643]
["MINGAM Corentin","MINGAM","Corentin","2000-01-17","M",null,"10184021N","Éragny - École du Dragon",950643]
["RENOULT Alexandre","RENOULT","Alexandre","2002-09-23","M",null,"10491620K","Éragny - École du Dragon",950643]
["OPIOLA Julyann","OPIOLA","Julyann","2006-07-14","M",null,"10908774N","Éragny - École du Dragon Hai",780680]
["AGHALLAL Shaymae","AGHALLAL","Shaymae","2015-04-25","F",null,null,"Ermont - Arts Martiaux Ermontois",950604]
["AMMOUR May Lee","AMMOUR","May Lee","2009-03-21","F",null,null,"Ermont - Arts Martiaux Ermontois",950604]
["ANDRIOT Maiwenn","ANDRIOT","Maiwenn","2015-04-21","F",null,null,"Ermont - Arts Martiaux Ermontois",950604]
["AVEZARD Roxane","AVEZARD","Roxane","1985-05-27","F",null,"09477971S","Ermont - Arts Martiaux Ermontois",950604]
["BARREAU Jean Claude","BARREAU","Jean Claude","1972-06-05","M",null,null,"Ermont - Arts Martiaux Ermontois",950604]
["BELHADI Elias","BELHADI","Elias","2012-07-12","M",null,null,"Ermont - Arts Martiaux Ermontois",950604]
["BELKHELFA Assia","BELKHELFA","Assia","2012-04-08","F",null,"11193943E","Ermont - Arts Martiaux Ermontois",950604]
["BENAZOUAOU Ayoub","BENAZOUAOU","Ayoub","04/042015","M",null,null,"Ermont - Arts Martiaux Ermontois",950604]
["BENCHERIF MADANI Mayssane","BENCHERIF MADANI","Mayssane","2014-08-06","F",null,null,"Ermont - Arts Martiaux Ermontois",950604]
["BENDJABALLAH Mohamed","BENDJABALLAH","Mohamed","2013-01-21","M",null,null,"Ermont - Arts Martiaux Ermontois",950604]
[{"$f":"CONCATENATE(B194,\" \",C194)","v":"BENDJABALLAH Safyr"},"BENDJABALLAH","Safyr","2012-04-17","M",null,null,"Ermont - Arts Martiaux Ermontois",950604]
["BENINI BENSLIMANE Laurence","BENINI BENSLIMANE","Laurence","1966-10-13","F",null,null,"Ermont - Arts Martiaux Ermontois",950604]
["BENSOUSSAN Anna","BENSOUSSAN","Anna","2015-02-28","F",null,null,"Ermont - Arts Martiaux Ermontois",950604]
["BERHIL Latifa","BERHIL","Latifa","1980-09-19","F",null,null,"Ermont - Arts Martiaux Ermontois",950604]
["BERNARD Maximilien","BERNARD","Maximilien","2005-11-03","M",null,"11101920 E","Ermont - Arts Martiaux Ermontois",950604]
["BLEUZE Melvin","BLEUZE","Melvin","2006-01-18","M",null,"10680391V","Ermont - Arts Martiaux Ermontois",950604]
["BOUKERDENNA Safyr","BOUKERDENNA","Safyr","2015-10-14","M",null,null,"Ermont - Arts Martiaux Ermontois",950604]
["BOUMKASSAR Sarah","BOUMKASSAR","Sarah","2013-04-12","F",null,null,"Ermont - Arts Martiaux Ermontois",950604]
["CABON Antoine","CABON","Antoine","2018-01-09","M",null,null,"Ermont - Arts Martiaux Ermontois",950604]
["CHAHBANE Hassan","CHAHBANE","Hassan","1973-08-20","M",null,null,"Ermont - Arts Martiaux Ermontois",950604]
["CHAMPANHET Saï","CHAMPANHET","Saï","2012-10-05","M",null,"11000369X","Ermont - Arts Martiaux Ermontois",950604]
["CHAMPANHET Stéphane","CHAMPANHET","Stéphane","1977-09-29","M",null,null,"Ermont - Arts Martiaux Ermontois",950604]
["CHENG Enora","CHENG","Enora","2014-07-24","F",null,null,"Ermont - Arts Martiaux Ermontois",950604]
["CHERAITIA Nouaym","CHERAITIA","Nouaym","2013-11-26","M",null,null,"Ermont - Arts Martiaux Ermontois",950604]
["CHERAITIA Wail","CHERAITIA","Wail","2009-07-15","M",null,null,"Ermont - Arts Martiaux Ermontois",950604]
["CHI Matisse","CHI","Matisse","2006-12-03","M",null,"11198156J","Ermont - Arts Martiaux Ermontois",950604]
["CHI Simon","CHI","Simon","2011-08-13","M",null,"11198163R","Ermont - Arts Martiaux Ermontois",950604]
["CIPRIANO Giulia","CIPRIANO","Giulia","2008-11-25","F",null,null,"Ermont - Arts Martiaux Ermontois",950604]
["CLAISSE Lee-Lou","CLAISSE","Lee-Lou","2012-04-10","F",null,null,"Ermont - Arts Martiaux Ermontois",950604]
["CLAVILIER TURQUIN Ambre","CLAVILIER TURQUIN","Ambre","2008-07-02","F",null,null,"Ermont - Arts Martiaux Ermontois",950604]
["CORNEILLE Céline","CORNEILLE","Céline","1986-07-25","F",null,null,"Ermont - Arts Martiaux Ermontois",950604]
["DABO Noé","DABO","Noé","2012-10-06","M",null,null,"Ermont - Arts Martiaux Ermontois",950604]
["DE SOUSA Ugo","DE SOUSA","Ugo","2008-08-21","M",null,"11000390V","Ermont - Arts Martiaux Ermontois",950604]
["DESMAY Alexis","DESMAY","Alexis","2009-10-16","M",null,"10921030K","Ermont - Arts Martiaux Ermontois",950604]
["DIARRA Khoumeyssa","DIARRA","Khoumeyssa","2014-08-11","F",null,null,"Ermont - Arts Martiaux Ermontois",950604]
["DIEP Léa","DIEP","Léa","2013-04-26","F",null,null,"Ermont - Arts Martiaux Ermontois",950604]
["DOLLIN Malcolm","DOLLIN","Malcolm","2010-06-14","M",null,"11193991G","Ermont - Arts Martiaux Ermontois",950604]
["EL BORJI Khalil","EL BORJI","Khalil","1980-07-16","M",null,"08985911U","Ermont - Arts Martiaux Ermontois",950604]
["FABRE Félix","FABRE","Félix","2008-01-03","M",null,null,"Ermont - Arts Martiaux Ermontois",950604]
["FABRE Lucien","FABRE","Lucien","2012-04-27","M",null,null,"Ermont - Arts Martiaux Ermontois",950604]
["GOUPIL Axelle","GOUPIL","Axelle","2012-07-07","F",null,"11198253P","Ermont - Arts Martiaux Ermontois",950604]
["GUÉGOU Éloann","GUÉGOU","Éloann","2015-05-15","M",null,null,"Ermont - Arts Martiaux Ermontois",950604]
["GUERMAT Mariam","GUERMAT","Mariam","2007-11-29","F",null,"11203467G","Ermont - Arts Martiaux Ermontois",950604]
["GUERMAT Younes","GUERMAT","Younes","2009-05-10","M",null,null,"Ermont - Arts Martiaux Ermontois",950604]
["GUERMAT Zeineb Inès","GUERMAT","Zeineb Inès","2012-04-08","F",null,null,"Ermont - Arts Martiaux Ermontois",950604]
["HMAITI Adame","HMAITI","Adame","2010-05-16","M",null,null,"Ermont - Arts Martiaux Ermontois",950604]
["HMAITI Akram","HMAITI","Akram","2013-10-01","M",null,null,"Ermont - Arts Martiaux Ermontois",950604]
["HOUSSAMI BENIGNI Amaya","HOUSSAMI BENIGNI","Amaya","2012-08-22","F",null,null,"Ermont - Arts Martiaux Ermontois",950604]
["HYLAND  Thomas","HYLAND ","Thomas","2010-12-18","M",null,null,"Ermont - Arts Martiaux Ermontois",950604]
["KOUNI Bilâl","KOUNI","Bilâl","2007-06-06","M",null,"10835355K","Ermont - Arts Martiaux Ermontois",950604]
["KOUNI Oways","KOUNI","Oways","2010-05-31","M",null,"10817981A","Ermont - Arts Martiaux Ermontois",950604]
["LAKS Elior","LAKS","Elior","2011-09-13","M",null,null,"Ermont - Arts Martiaux Ermontois",950604]
["LAKS MEYRON","LAKS","MEYRON","2014-12-08","M",null,null,"Ermont - Arts Martiaux Ermontois",950604]
["LAM NGUYEN Evan","LAM NGUYEN","Evan","2009-01-11","M",null,null,"Ermont - Arts Martiaux Ermontois",950604]
["LIMA Kelly","LIMA","Kelly","2000-10-10","F",null,null,"Ermont - Arts Martiaux Ermontois",950604]
["MARQUES GOMES Ricardo","MARQUES GOMES","Ricardo","2007-10-02","m",null,null,"Ermont - Arts Martiaux Ermontois",950604]
["MARRECAU Cécile","MARRECAU","Cécile","1986-08-28","F",null,null,"Ermont - Arts Martiaux Ermontois",950604]
["MARRECAU Heymma","MARRECAU","Heymma","2012-11-01","F",null,null,"Ermont - Arts Martiaux Ermontois",950604]
["MISSAOUI Marwa Maness","MISSAOUI","Marwa Maness","2014-06-27","F",null,null,"Ermont - Arts Martiaux Ermontois",950604]
["MOUMEN Ayoub","MOUMEN","Ayoub","2012-12-30","M",null,null,"Ermont - Arts Martiaux Ermontois",950604]
["NANA Ashley","NANA","Ashley","2012-10-05","F",null,null,"Ermont - Arts Martiaux Ermontois",950604]
["NANA Olivia","NANA","Olivia","2014-10-02","F",null,null,"Ermont - Arts Martiaux Ermontois",950604]
["NAUDIN Mila","NAUDIN","Mila","2014-10-31","F",null,null,"Ermont - Arts Martiaux Ermontois",950604]
["NGUYEN BA Alain","NGUYEN BA","Alain","1959-03-04","M","OUI","10224929D","Ermont - Arts Martiaux Ermontois",950604]
["PHAM-NGOC Thach","PHAM-NGOC","Thach","1951-11-01","M",null,"10397196A","Ermont - Arts Martiaux Ermontois",950604]
["PINEAU Alexandre","PINEAU","Alexandre","2004-03-21","M",null,null,"Ermont - Arts Martiaux Ermontois",950604]
["RAMSAHAI Fabrice","RAMSAHAI","Fabrice","1977-03-07","M","OUI","09015250K","Ermont - Arts Martiaux Ermontois",950604]
["REI Sheen","REI","Sheen","2000-11-29","M",null,"10269965F","Ermont - Arts Martiaux Ermontois",950604]
["RIVET Aurélie","RIVET","Aurélie","1991-12-27","F","OUI","09478015Q","Ermont - Arts Martiaux Ermontois",950604]
["SADALLAH Yanis","SADALLAH","Yanis","2015-06-28","M",null,950030068,"Ermont - Arts Martiaux Ermontois",950604]
["SISSOKO Inna","SISSOKO","Inna","2012-06-09","F",null,"11413022J","Ermont - Arts Martiaux Ermontois",950604]
["SISSOKO May","SISSOKO","May","2010-01-01","F",null,"11413028Q","Ermont - Arts Martiaux Ermontois",950604]
["SISSOKO Sériba","SISSOKO","Sériba","1980-12-21","M",null,"10360553Y","Ermont - Arts Martiaux Ermontois",950604]
["SOW Léandre","SOW","Léandre","2010-06-17","M",null,"11019961T","Ermont - Arts Martiaux Ermontois",950604]
[{"$f":"CONCATENATE(B258,\" \",C258)","v":"STEFANKO Demyan"},"STEFANKO","Demyan","2010-11-01","M",null,"10921070D","Ermont - Arts Martiaux Ermontois",950604]
["TETTAMANTI Roxane","TETTAMANTI","Roxane","2013-03-14","f",null,null,"Ermont - Arts Martiaux Ermontois",950604]
["THIEFFRY Roland","THIEFFRY","Roland","1975-08-19","M",null,"09583960X","Ermont - Arts Martiaux Ermontois",950604]
["THIENOT Eliott","THIENOT","Eliott","2005-03-13","M",null,"10473236C","Ermont - Arts Martiaux Ermontois",950604]
["THIENOT Eric","THIENOT","Eric","1975-10-07","M",null,"10103531Y","Ermont - Arts Martiaux Ermontois",950604]
["THIENOT Merlin","THIENOT","Merlin","2008-11-27","M",null,"10751988T","Ermont - Arts Martiaux Ermontois",950604]
["TRAN Arthur","TRAN","Arthur","2012-06-23","M",null,null,"Ermont - Arts Martiaux Ermontois",950604]
["TRAN Jenny","TRAN","Jenny","2013-04-29","F",null,null,"Ermont - Arts Martiaux Ermontois",950604]
["TRUONG Thanh Nha","TRUONG","Thanh Nha","2008-02-11","F",null,null,"Ermont - Arts Martiaux Ermontois",950604]
["VELMOUROUGANE Aroun","VELMOUROUGANE","Aroun","1976-11-17","M",null,"10318172E","Ermont - Arts Martiaux Ermontois",950604]
["VELMOUROUGANE Maëlle","VELMOUROUGANE","Maëlle","2002-11-24","F",null,"10318175H","Ermont - Arts Martiaux Ermontois",950604]
["VELMOUROUGANE Maeva","VELMOUROUGANE","Maeva","2006-11-03","F",null,"10653411U","Ermont - Arts Martiaux Ermontois",950604]
["VERCHERE Mathis","VERCHERE","Mathis","2004-09-21","M",null,null,"Ermont - Arts Martiaux Ermontois",950604]
["WACYCK Bruno","WACYCK","Bruno","1967-07-27","M","OUI","09477913Q","Ermont - Arts Martiaux Ermontois",950604]
["YAHYAOUI Haroun","YAHYAOUI","Haroun","2014-04-11","M",null,null,"Ermont - Arts Martiaux Ermontois",950604]
["YAHYAOUI Mohammed","YAHYAOUI","Mohammed","1958-08-15","M",null,null,"Ermont - Arts Martiaux Ermontois",950604]
["ZALEGH As Samad","ZALEGH","As Samad","2012-08-01","M",null,null,"Ermont - Arts Martiaux Ermontois",950604]
["ZALEGH Ya sin","ZALEGH","Ya sin","18/05/210","M",null,null,"Ermont - Arts Martiaux Ermontois",950604]
["ZIELE Adina","ZIELE","Adina","2011-05-01","F",null,null,"Ermont - Arts Martiaux Ermontois",950604]
["BENHARIGA Mahmoud","BENHARIGA","Mahmoud","2004-08-31","M",null,"10584679L","Évry - VVD - SCA 2000",910679]
["BLUTEAU-BAZE Victoria","BLUTEAU-BAZE","Victoria","2007-07-24","F",null,"10870989S","Évry - VVD - SCA 2000",910679]
["BURESI Axelle","BURESI","Axelle","2004-01-25","F",null,"10785214J","Évry - VVD - SCA 2000",910679]
["FLEURY Kémy","FLEURY","Kémy","2004-11-15","M",null,"10356154P","Évry - VVD - SCA 2000",910679]
["MAURY-MINNE Hugo-Xuân","MAURY-MINNE","Hugo-Xuân","2002-07-02","M",null,"10356156R","Évry - VVD - SCA 2000",910679]
["RAHMANI Mohamed","RAHMANI","Mohamed","2004-03-03","M",null,"10356152M","Évry - VVD - SCA 2000",910679]
["RAHMANI Wassila","RAHMANI","Wassila","1999-10-17","F",null,"10356158T","Évry - VVD - SCA 2000",910679]
["TEJENNI Ayman","TEJENNI","Ayman","2003-08-10","M",null,"10785292T","Évry - VVD - SCA 2000",910679]
["TEJENNI Mohamed","TEJENNI","Mohamed","2010-10-02","M",null,"10785295W","Évry - VVD - SCA 2000",910679]
["AZOUIGUI Sophia","AZOUIGUI","Sophia","1981-10-08","F",null,"10525118V","Fontenay sous Bois - Bac Long",940058]
["BENDRISS Inès","BENDRISS","Inès","1999-10-23","F",null,"10274504P","Fontenay sous Bois - Bac Long",940058]
["BRAULT Orwen","BRAULT","Orwen","2009-12-05","M",null,"11160561U","Fontenay sous Bois - Bac Long",940058]
["CHEMIN Annaëlle","CHEMIN","Annaëlle","2003-03-26","F",null,"10557768K","Fontenay sous Bois - Bac Long",940058]
["CHEMIN Elena","CHEMIN","Elena","2001-07-18","F",null,"10557770M","Fontenay sous Bois - Bac Long",940058]
["CLAIRVOYANT\t Lenny","CLAIRVOYANT\t","Lenny","2008-09-26","M",null,"11160560T","Fontenay sous Bois - Bac Long",940058]
["CRICIFIX Solan","CRICIFIX","Solan","2010-05-22","M",null,"11074460G","Fontenay sous Bois - Bac Long",940058]
["DE FREITAS Fernando","DE FREITAS","Fernando","1978-01-29","M",null,"10274490Y","Fontenay sous Bois - Bac Long",940058]
["DELPORTE Roman","DELPORTE","Roman","2006-05-08","M",null,"10980923L","Fontenay sous Bois - Bac Long",940058]
["DOUÉ Sébastien","DOUÉ","Sébastien","1995-06-07","M",null,"09521696U","Fontenay sous Bois - Bac Long",940058]
["DOUIRI Eyniss","DOUIRI","Eyniss","1994-06-18","M",null,"09473688M","Fontenay sous Bois - Bac Long",940058]
["DOUIRI Idriss","DOUIRI","Idriss","1997-11-03","M",null,"09605558Y","Fontenay sous Bois - Bac Long",940058]
["FRANCISCO Ambre","FRANCISCO","Ambre","1999-11-08","F",null,"10274492B","Fontenay sous Bois - Bac Long",940058]
["GUILLIN Liroï","GUILLIN","Liroï","2002-07-22","M",null,"01349759E","Fontenay sous Bois - Bac Long",940058]
["LERICHE FALK Marley","LERICHE FALK","Marley","2007-12-22","M",null,"11074463K","Fontenay sous Bois - Bac Long",940058]
["LERICHE-FALK Marley","LERICHE-FALK","Marley","2007-12-22","M",null,"11074463K","Fontenay sous Bois - Bac Long",940058]
["LOUPADIERE Daryl","LOUPADIERE","Daryl","2011-07-03","M",null,"11160562V","Fontenay sous Bois - Bac Long",940058]
["LOUPADIERE Nolane","LOUPADIERE","Nolane","2005-12-01","M",null,10980925,"Fontenay sous Bois - Bac Long",940058]
["POINTEAUX Marc","POINTEAUX","Marc","2009-01-15","M",null,"11074459F","Fontenay sous Bois - Bac Long",940058]
["RAGUENAU Anis","RAGUENAU","Anis","2010-04-04","M",null,"11074462J","Fontenay sous Bois - Bac Long",940058]
["ROGER Camille","ROGER","Camille","1999-08-05","F",null,"10274487V","Fontenay sous Bois - Bac Long",940058]
["SAMIR Sara","SAMIR","Sara","2000-02-28","F",null,"10525115S","Fontenay sous Bois - Bac Long",940058]
["SMATI Hadjar","SMATI","Hadjar","1994-03-28","F",null,"09473690P","Fontenay sous Bois - Bac Long",940058]
["SMATI Hania","SMATI","Hania","1995-09-17","F",null,"09521643M","Fontenay sous Bois - Bac Long",940058]
["SMATI Hisham","SMATI","Hisham","1998-07-04","M",null,"09605503P","Fontenay sous Bois - Bac Long",940058]
["ZEGHAR Khadidja","ZEGHAR","Khadidja","2002-02-05","F",null,"10525117U","Fontenay sous Bois - Bac Long",940058]
["AIRES DASILVA Hugo","AIRES DASILVA","Hugo","2003-11-16","M",null,"10580403N","Franconville - Les Dragons de la Récré",950633]
["BACHELIER Axel","BACHELIER","Axel","2004-08-02","M",null,"10659350A","Franconville - Les Dragons de la Récré",950633]
["BENOUARI Zacharia","BENOUARI","Zacharia","2000-05-23","M",null,"10242967K","Franconville - Les Dragons de la Récré",950633]
["BENSLIMANE Ambrine","BENSLIMANE","Ambrine","1998-04-16","F",null,"10489318H","Franconville - Les Dragons de la Récré",950633]
["BOUHARCHA Nasim","BOUHARCHA","Nasim","2001-06-02","M",null,"10654435H","Franconville - Les Dragons de la Récré",950633]
["BRITO DE OLIVERA Catarina","BRITO DE OLIVERA","Catarina","2000-02-16","F",null,"10580347C","Franconville - Les Dragons de la Récré",950633]
["BRITO DE SOUSA Iuri","BRITO DE SOUSA","Iuri","2003-02-01","M",null,"10580356M","Franconville - Les Dragons de la Récré",950633]
["CORRE Melvyn","CORRE","Melvyn","2003-12-23","M",null,"10654428A","Franconville - Les Dragons de la Récré",950633]
["DELACROIX Quentin","DELACROIX","Quentin","1990-09-30","M",null,"10438152S","Franconville - Les Dragons de la Récré",950633]
["DENON  Maéva","DENON ","Maéva","2000-01-19","F",null,"10580397G","Franconville - Les Dragons de la Récré",950633]
[{"$f":"CONCATENATE(B322,\" \",C322)","v":"DIALLO Mamadou"},"DIALLO","Mamadou","2003-10-16","M",null,"10654344J","Franconville - Les Dragons de la Récré",950633]
["DIALLO Marlyatou","DIALLO","Marlyatou","2001-10-26","F",null,"10654338C","Franconville - Les Dragons de la Récré",950633]
["DIENG Mourtada","DIENG","Mourtada","2006-12-31","M",null,"10671299N","Franconville - Les Dragons de la Récré",950633]
["HADJIH Adam","HADJIH","Adam","2005-08-08","M",null,"10654332V","Franconville - Les Dragons de la Récré",950633]
["HOANG Jade","HOANG","Jade","1995-08-02","F",null,"10154440K","Franconville - Les Dragons de la Récré",950633]
["HUDSON Brenda","HUDSON","Brenda","2004-09-03","F",null,"10456199J","Franconville - Les Dragons de la Récré",950633]
["HUDSON Melinda","HUDSON","Melinda","2002-08-07","F",null,"10353270E","Franconville - Les Dragons de la Récré",950633]
["HUDSON Tristana","HUDSON","Tristana","1999-08-19","F",null,"10150291A","Franconville - Les Dragons de la Récré",950633]
["KACIMI Yannis","KACIMI","Yannis","1998-02-25","M",null,"10353258R","Franconville - Les Dragons de la Récré",950633]
["KODABUCAS Sarah","KODABUCAS","Sarah","1999-10-20","F",null,"10286566A","Franconville - Les Dragons de la Récré",950633]
["LAPLACE Jérémy","LAPLACE","Jérémy","1996-06-14","M","OUI","10150301L","Franconville - Les Dragons de la Récré",950633]
["LOPEZ Fanny","LOPEZ","Fanny","1999-08-28","F",null,"10401486N","Franconville - Les Dragons de la Récré",950633]
["LOURIMI Elies","LOURIMI","Elies","1996-05-08","M",null,"10046091P","Franconville - Les Dragons de la Récré",950633]
["MASEBI Darnel","MASEBI","Darnel","1994-12-03","M","OUI","10150292B","Franconville - Les Dragons de la Récré",950633]
["MAVIER Kévin","MAVIER","Kévin","1999-04-06","M",null,"10489296J","Franconville - Les Dragons de la Récré",950633]
["MAVIER Maxime","MAVIER","Maxime","2002-05-12","M",null,"10489292E","Franconville - Les Dragons de la Récré",950633]
["MEDICI Enzo","MEDICI","Enzo","1999-02-04","M",null,"10401494W","Franconville - Les Dragons de la Récré",950633]
["MENET Vincent","MENET","Vincent","1989-08-04","M","OUI","09472308M","Franconville - Les Dragons de la Récré",950633]
["NGUYEN Anh-tin","NGUYEN","Anh-tin","2000-05-27","M",null,"10580137Z","Franconville - Les Dragons de la Récré",950633]
["NGUYEN Kévin","NGUYEN","Kévin","1999-01-10","M",null,"10489288A","Franconville - Les Dragons de la Récré",950633]
["NGUYEN Thuy-Vi","NGUYEN","Thuy-Vi","1993-01-31","F",null,"10401524E","Franconville - Les Dragons de la Récré",950633]
["PELLERY Grégory","PELLERY","Grégory","1996-01-25","M",null,"10150303N","Franconville - Les Dragons de la Récré",950633]
["RETAL Mohammed","RETAL","Mohammed","1991-07-05","M",null,"10353241X","Franconville - Les Dragons de la Récré",950633]
["ROWLAND Ugo","ROWLAND","Ugo","2002-09-23","M",null,"10580228Y","Franconville - Les Dragons de la Récré",950633]
["SAMOUDI Elias","SAMOUDI","Elias","2004-11-28","M",null,"10654419Q","Franconville - Les Dragons de la Récré",950633]
["SOMRAH Mathilde","SOMRAH","Mathilde","2001-04-14","F",null,"10580239K","Franconville - Les Dragons de la Récré",950633]
["SOMRAH Oriane","SOMRAH","Oriane","2006-10-04","F",null,"10580242N","Franconville - Les Dragons de la Récré",950633]
["SOMRAH Rajesh","SOMRAH","Rajesh","1971-02-18","M",null,"10401532N","Franconville - Les Dragons de la Récré",950633]
["SYLLA Al-Hadjy","SYLLA","Al-Hadjy","1996-12-28","M",null,"10223112D","Franconville - Les Dragons de la Récré",950633]
["SYLLA Souleymane","SYLLA","Souleymane","1994-08-27","M",null,"10580248V","Franconville - Les Dragons de la Récré",950633]
["TOUAG Nabil","TOUAG","Nabil","2001-03-30","M",null,"10286556P","Franconville - Les Dragons de la Récré",950633]
["TOUAG Salim","TOUAG","Salim","1999-05-14","M",null,"10150294D","Franconville - Les Dragons de la Récré",950633]
["TRAN Vincent","TRAN","Vincent","2004-08-17","M",null,"10580207A","Franconville - Les Dragons de la Récré",950633]
["VARLET Frédéric","VARLET","Frédéric","1990-12-04","M",null,"10353245C","Franconville - Les Dragons de la Récré",950633]
["DESAULT Boris","DESAULT","Boris","1993-12-05","M","NON","10649868T","Groslay - Nthoa Kim Long",950689]
["BIENFAIT Ethan","BIENFAIT","Ethan","2008-08-06","M",null,"10732093T","Jouy le Moutier - Yi-King Do",950679]
["BIERRE Ethan","BIERRE","Ethan","2007-10-27","M",null,"10806095F","Jouy le Moutier - Yi-King Do",950679]
["BOUSSOUFA Ranya","BOUSSOUFA","Ranya","2000-11-10","F",null,"10755307B","Jouy le Moutier - Yi-King Do",950679]
["BOUTELOUP Arthur","BOUTELOUP","Arthur","2006-10-18","M","non","10905068 K","Jouy le Moutier - Yi-King Do",950679]
["BUISSARD Hugo","BUISSARD","Hugo","2001-09-17","M",null,"10568294B","Jouy le Moutier - Yi-King Do",950679]
["CATENNE Nathan","CATENNE","Nathan","2002-07-24","M","non","11068449 X","Jouy le Moutier - Yi-King Do",950679]
["CHILLON Lucas","CHILLON","Lucas","2001-11-30","M",null,"10810562L","Jouy le Moutier - Yi-King Do",950679]
["DAIRAIN Jason","DAIRAIN","Jason","2003-02-27","M",null,"10397477F","Jouy le Moutier - Yi-King Do",950679]
["DAIRAIN Lylian","DAIRAIN","Lylian","2004-11-02","M",null,"10397472A","Jouy le Moutier - Yi-King Do",950679]
["DASILVA Léna","DASILVA","Léna","2004-06-05","F",null,"10788626S","Jouy le Moutier - Yi-King Do",950679]
["GACER Peter","GACER","Peter","2006-08-12","M","non","10562823 E","Jouy le Moutier - Yi-King Do",950679]
["GAUTIER Jérôme","GAUTIER","Jérôme","1975-01-29","M",null,"00865835A","Jouy le Moutier - Yi-King Do",950679]
["HUET Enzo","HUET","Enzo","2004-10-28","M",null,"10810568S","Jouy le Moutier - Yi-King Do",950679]
["HUET Lino","HUET","Lino","2007-11-18","M","non","10810554 C","Jouy le Moutier - Yi-King Do",950679]
["LACHAS Vianney","LACHAS","Vianney","2000-08-30","M",null,"10643049G","Jouy le Moutier - Yi-King Do",950679]
["LECURIEUX Stan","LECURIEUX","Stan","2001-09-17","M",null,"10742418R","Jouy le Moutier - Yi-King Do",950679]
["LEFEVRELOREAU Melissa","LEFEVRELOREAU","Melissa","2005-01-22","F","non","10992334 P","Jouy le Moutier - Yi-King Do",950679]
["LEFEVRE-LOREAU Mélissa","LEFEVRE-LOREAU","Mélissa","2005-01-22","F",null,"10992334P","Jouy le Moutier - Yi-King Do",950679]
["LEROUX Esteban","LEROUX","Esteban","2005-01-30","M",null,"11087997V","Jouy le Moutier - Yi-King Do",950679]
["LORIER Léa","LORIER","Léa","2002-10-31","F",null,"10734154J","Jouy le Moutier - Yi-King Do",950679]
["NGUYEN VAN TINH Gilbert","NGUYEN VAN TINH","Gilbert","1974-06-23","M",null,"10897971V","Jouy le Moutier - Yi-King Do",950679]
["NGUYEN VAN TINH Nolhan","NGUYEN VAN TINH","Nolhan","2008-11-24","M",null,"10923308L","Jouy le Moutier - Yi-King Do",950679]
["PINHEIRO Tonyo","PINHEIRO","Tonyo","2006-07-22","M","non","10569275 T","Jouy le Moutier - Yi-King Do",950679]
["PIZZALI Nicolas","PIZZALI","Nicolas","2005-10-17","M",null,"10810572W","Jouy le Moutier - Yi-King Do",950679]
["RENKIN Lyanh","RENKIN","Lyanh","2006-04-30","F",null,"10761376X","Jouy le Moutier - Yi-King Do",950679]
["SABARLY Nicolas","SABARLY","Nicolas","2013-02-11","M","non","11027607 E","Jouy le Moutier - Yi-King Do",950679]
["SAMPAIO Romain","SAMPAIO","Romain","2006-06-13","M",null,"10806096G","Jouy le Moutier - Yi-King Do",950679]
["TINKLONGKI Lucas","TINKLONGKI","Lucas","2009-04-28","M","non","10903656 A","Jouy le Moutier - Yi-King Do",950679]
["TIN-LONG-KI Lucas","TIN-LONG-KI","Lucas","2009-04-28","M",null,"10903656A","Jouy le Moutier - Yi-King Do",950679]
[{"$f":"CONCATENATE(B386,\" \",C386)","v":"ZOUZOU Ymen"},"ZOUZOU","Ymen","2003-06-19","F",null,"10595966E","Jouy le Moutier - Yi-King Do",950679]
["GALEA Yluane","GALEA","Yluane","2005-04-25","M",null,"11132216K","Juvisy - Tigre Jaune",910743]
["MARTIN Lorenzo","MARTIN","Lorenzo","2005-04-29","M",null,"11132226V","Juvisy - Tigre Jaune",910743]
["NYEMB Romain","NYEMB","Romain","2010-11-10","M",null,"11075186 V","Juvisy - Tigre Jaune",910743]
["AGUGGIA Quentin","AGUGGIA","Quentin","1996-12-25","M",null,"10364362L","La Courneuve - Võ Son Long",930644]
["AHBIB Hassan","AHBIB","Hassan","1995-04-05","M",null,105321141,"La Courneuve - Võ Son Long",930644]
["BAGHDADI Dounia","BAGHDADI","Dounia","2002-10-04","F",null,"10442288N","La Courneuve - Võ Son Long",930644]
["BARAC  Sarah","BARAC ","Sarah","2003-11-29","F",null,"10761897P","La Courneuve - Võ Son Long",930644]
["BIBI-TRIKI  Lotfi","BIBI-TRIKI ","Lotfi","2004-06-10","M",null,"10705684N","La Courneuve - Võ Son Long",930644]
["BIBI-TRIKI  Sofiane","BIBI-TRIKI ","Sofiane","2004-06-10","M",null,"10705685P","La Courneuve - Võ Son Long",930644]
["BORNE-DA SYLVA James Evans","BORNE-DA SYLVA","James Evans","2001-01-08","M",null,"10442284J","La Courneuve - Võ Son Long",930644]
["CHEDOZEAU Rodrigue","CHEDOZEAU","Rodrigue","2004-12-06","M",null,10761890,"La Courneuve - Võ Son Long",930644]
["CORNELIS James","CORNELIS","James","2000-01-31","M",null,"10442286L","La Courneuve - Võ Son Long",930644]
["ELPHEGE Andréa","ELPHEGE","Andréa","2000-09-08","F",null,"10450781U","La Courneuve - Võ Son Long",930644]
["GILLES Lucille","GILLES","Lucille","1997-11-10","F",null,"10442289P","La Courneuve - Võ Son Long",930644]
["MIAKA MIA Axel","MIAKA MIA","Axel","1995-08-24","M","OUI","09473508R","La Courneuve - Võ Son Long",930644]
["MODESTINE Rodolphe","MODESTINE","Rodolphe","1978-07-11","M","OUI",9577707,"La Courneuve - Võ Son Long",930644]
["SID ATMANE Kévin","SID ATMANE","Kévin","2001-08-09","M",null,"10442285K","La Courneuve - Võ Son Long",930644]
["SONGUE Idriss","SONGUE","Idriss","1977-05-10","M","OUI","10332472X","La Courneuve - Võ Son Long",930644]
["TAKHALLOUFT Othman","TAKHALLOUFT","Othman","2003-05-31","M",null,"10622942B","La Courneuve - Võ Son Long",930644]
["ANDRIAMARO Marina","ANDRIAMARO","Marina","1996-12-14","F",null,"10348127P","Méry sur Oise - Union Việt Võ Ðạo Méry",950636]
["ARROYO Sylvaine","ARROYO","Sylvaine","1979-09-18","F",null,"10522714H","Méry sur Oise - Union Việt Võ Ðạo Méry",950636]
["BEISSON Yann","BEISSON","Yann","1996-09-28","M",null,"10800182D","Méry sur Oise - Union Việt Võ Ðạo Méry",950636]
["CORADIDI Adam","CORADIDI","Adam","2003-09-01","M",null,"10277886Q","Méry sur Oise - Union Việt Võ Ðạo Méry",950636]
["CRISTOBAL Émilie","CRISTOBAL","Émilie","1990-10-24","F",null,"10419671E","Méry sur Oise - Union Việt Võ Ðạo Méry",950636]
["CROZAT Zoé","CROZAT","Zoé","2003-10-10","F",null,"11160811R","Méry sur Oise - Union Việt Võ Ðạo Méry",950636]
["DANIEL Clarisse","DANIEL","Clarisse","1999-10-01","F",null,"10419672F","Méry sur Oise - Union Việt Võ Ðạo Méry",950636]
["DAUDENTHUN Julien","DAUDENTHUN","Julien","1985-12-21","M","OUI","10419673G","Méry sur Oise - Union Việt Võ Ðạo Méry",950636]
["DECAUDIN Léa","DECAUDIN","Léa","2002-10-07","F",null,"10522703W","Méry sur Oise - Union Việt Võ Ðạo Méry",950636]
["DELZENNE Eloïse","DELZENNE","Eloïse","2008-09-23","F",null,"11143258M","Méry sur Oise - Union Việt Võ Ðạo Méry",950636]
["DUCOLOMBIER Julien","DUCOLOMBIER","Julien","1988-06-29","M",null,"08971842C","Méry sur Oise - Union Việt Võ Ðạo Méry",950636]
["DURAND Sébastien","DURAND","Sébastien","1979-07-17","M",null,"11042538J","Méry sur Oise - Union Việt Võ Ðạo Méry",950636]
["FERNANDEZ Xavier","FERNANDEZ","Xavier","1994-11-26","M",null,"09482933L","Méry sur Oise - Union Việt Võ Ðạo Méry",950636]
["FROMY Vanessa","FROMY","Vanessa","1977-02-17","F",null,"10419682R","Méry sur Oise - Union Việt Võ Ðạo Méry",950636]
["GASPARELLO Alanne","GASPARELLO","Alanne","2002-09-03","F",null,"10348192K","Méry sur Oise - Union Việt Võ Ðạo Méry",950636]
["GASPARELLO Mathis","GASPARELLO","Mathis","2001-06-11","M",null,"10277806D","Méry sur Oise - Union Việt Võ Ðạo Méry",950636]
["KHAOUIS Lisa","KHAOUIS","Lisa","2001-07-12","F",null,"10837606G","Méry sur Oise - Union Việt Võ Ðạo Méry",950636]
["LACOUR Priscilla","LACOUR","Priscilla","1991-11-13","F",null,"09481798C","Méry sur Oise - Union Việt Võ Ðạo Méry",950636]
["LAMOUR Blandine","LAMOUR","Blandine","2000-02-10","F",null,"10277767L","Méry sur Oise - Union Việt Võ Ðạo Méry",950636]
["LARGETEAU Emma","LARGETEAU","Emma","2004-04-10","F",null,"10522736G","Méry sur Oise - Union Việt Võ Ðạo Méry",950636]
["LE COZ Erwin","LE COZ","Erwin","1990-01-22","M",null,"10419687W","Méry sur Oise - Union Việt Võ Ðạo Méry",950636]
["LEBELT Florian","LEBELT","Florian","1986-05-08","M","OUI","09482968Y","Méry sur Oise - Union Việt Võ Ðạo Méry",950636]
["LEON Fabrice","LEON","Fabrice","1971-08-19","M",null,"01367839G","Méry sur Oise - Union Việt Võ Ðạo Méry",950636]
["MAILLY Martin","MAILLY","Martin","2006-05-02","M",null,"10419696G","Méry sur Oise - Union Việt Võ Ðạo Méry",950636]
["MARGUIER Bruno","MARGUIER","Bruno","1982-08-26","M",null,"10299152F","Méry sur Oise - Union Việt Võ Ðạo Méry",950636]
["MAURY Lola","MAURY","Lola","2006-10-22","F",null,"10522725U","Méry sur Oise - Union Việt Võ Ðạo Méry",950636]
["MAURY Sarah","MAURY","Sarah","2004-04-29","F",null,"10522726V","Méry sur Oise - Union Việt Võ Ðạo Méry",950636]
["MIDANI Léa","MIDANI","Léa","2000-08-21","F",null,"10348139C","Méry sur Oise - Union Việt Võ Ðạo Méry",950636]
["MONNIER Cédric","MONNIER","Cédric","1977-06-06","M",null,"10522724T","Méry sur Oise - Union Việt Võ Ðạo Méry",950636]
["MOREIRA Émilie","MOREIRA","Émilie","2000-06-01","F",null,"10277820T","Méry sur Oise - Union Việt Võ Ðạo Méry",950636]
["NICOL Mylène","NICOL","Mylène","2000-05-16","F",null,"10277791M","Méry sur Oise - Union Việt Võ Ðạo Méry",950636]
["OTSMANE Corentin","OTSMANE","Corentin","1999-04-19","M",null,"09608635T","Méry sur Oise - Union Việt Võ Ðạo Méry",950636]
["PASCI Théo","PASCI","Théo","2000-05-13","M",null,"10277766K","Méry sur Oise - Union Việt Võ Ðạo Méry",950636]
["PECQUEUX William","PECQUEUX","William","2001-12-17","M",null,"10982787M","Méry sur Oise - Union Việt Võ Ðạo Méry",950636]
["PINTO Audrey","PINTO","Audrey","2001-11-08","F",null,"10419837K","Méry sur Oise - Union Việt Võ Ðạo Méry",950636]
["RAGUENEAU Candice","RAGUENEAU","Candice","2005-07-17","F",null,"10837661R","Méry sur Oise - Union Việt Võ Ðạo Méry",950636]
["VEDIE Emelyne","VEDIE","Emelyne","1999-06-17","F",null,"10348147L","Méry sur Oise - Union Việt Võ Ðạo Méry",950636]
["BALEH Lounes","BALEH","Lounes","2006-06-13","M",null,"10780023R","Montigny-les-Cormeilles - Võ Quyen Ðao",950112]
["BALEH Ouali","BALEH","Ouali","2003-10-09","M",null,"10780026U","Montigny-les-Cormeilles - Võ Quyen Ðao",950112]
["BOUTALEB Ali","BOUTALEB","Ali","2001-03-27","M",null,"10780031A","Montigny-les-Cormeilles - Võ Quyen Ðao",950112]
["BUREL Branwick","BUREL","Branwick","2001-06-03","M",null,"10284395Q","Montigny-les-Cormeilles - Võ Quyen Ðao",950112]
["BUREL Eléonore","BUREL","Eléonore","2004-10-15","F",null,"106103349N","Montigny-les-Cormeilles - Võ Quyen Ðao",950112]
["CHIMAMPAN Nopparut","CHIMAMPAN","Nopparut","1998-04-29","M",null,"10340977S","Montigny-les-Cormeilles - Võ Quyen Ðao",950112]
["COURGIBET Raphaël","COURGIBET","Raphaël","2007-07-14","M",null,"10800940C","Montigny-les-Cormeilles - Võ Quyen Ðao",950112]
[{"$f":"CONCATENATE(B450,\" \",C450)","v":"DA COSTA Raphaël"},"DA COSTA","Raphaël","1975-12-10","M","OUI","0954979P","Montigny-les-Cormeilles - Võ Quyen Ðao",950112]
["DHOOGE Alexandre","DHOOGE","Alexandre","1998-10-02","M",null,"10284392M","Montigny-les-Cormeilles - Võ Quyen Ðao",950112]
["DHOOGE Frédéric","DHOOGE","Frédéric","2001-12-09","M",null,"10480489L","Montigny-les-Cormeilles - Võ Quyen Ðao",950112]
["DOAN Chi Tai","DOAN","Chi Tai","1996-02-24","M",null,"10340980V","Montigny-les-Cormeilles - Võ Quyen Ðao",950112]
["DUTRANOIS Jérôme","DUTRANOIS","Jérôme","2003-09-17","M",null,"10864319S","Montigny-les-Cormeilles - Võ Quyen Ðao",950112]
["HAMDOUN Hedy","HAMDOUN","Hedy","2007-04-29","M",null,"10780045Q","Montigny-les-Cormeilles - Võ Quyen Ðao",950112]
["HESPEL Erwan","HESPEL","Erwan","1999-10-04","M",null,"10284391L","Montigny-les-Cormeilles - Võ Quyen Ðao",950112]
["HESPEL Mélissa","HESPEL","Mélissa","2000-06-07","F",null,"10340952P","Montigny-les-Cormeilles - Võ Quyen Ðao",950112]
["HUET Kévin","HUET","Kévin","1988-06-29","M",null,"10417289Q","Montigny-les-Cormeilles - Võ Quyen Ðao",950112]
["LEBEE Hugo","LEBEE","Hugo","1998-11-12","M",null,"10284382B","Montigny-les-Cormeilles - Võ Quyen Ðao",950112]
["LEBEE Mélissa","LEBEE","Mélissa","2000-06-07","F",null,"10417297Y","Montigny-les-Cormeilles - Võ Quyen Ðao",950112]
["LUU Alexandre","LUU","Alexandre","2002-05-18","M",null,"10417295W","Montigny-les-Cormeilles - Võ Quyen Ðao",950112]
["NAPOLETANO Andréa","NAPOLETANO","Andréa","2002-09-22","F",null,"10682672A","Montigny-les-Cormeilles - Võ Quyen Ðao",950112]
["NAPOLETANO Liana","NAPOLETANO","Liana","2006-08-23","F",null,"10780054A","Montigny-les-Cormeilles - Võ Quyen Ðao",950112]
["OUADHI Kylian","OUADHI","Kylian","1997-04-18","M",null,"10340959X","Montigny-les-Cormeilles - Võ Quyen Ðao",950112]
["OUADHI Mathis","OUADHI","Mathis","2000-07-21","M",null,"10340958W","Montigny-les-Cormeilles - Võ Quyen Ðao",950112]
["PERQUIS Randy","PERQUIS","Randy","2006-08-08","M",null,"10679029Q","Montigny-les-Cormeilles - Võ Quyen Ðao",950112]
["RAMAEL Lylia","RAMAEL","Lylia","2003-04-23","F","OUI","10340951P","Montigny-les-Cormeilles - Võ Quyen Ðao",950112]
["RAMAEL Maéva","RAMAEL","Maéva","2000-02-26","F",null,"10284387G","Montigny-les-Cormeilles - Võ Quyen Ðao",950112]
["RAMAEL Marine","RAMAEL","Marine","1996-05-15","F",null,"10340956U","Montigny-les-Cormeilles - Võ Quyen Ðao",950112]
["RAMAEL Pascal","RAMAEL","Pascal","1967-09-21","M",null,"10284386F","Montigny-les-Cormeilles - Võ Quyen Ðao",950112]
["RAMAEL Yohan","RAMAEL","Yohan","1997-04-09","M",null,"10284385E","Montigny-les-Cormeilles - Võ Quyen Ðao",950112]
["RAMAEL  Soraya","RAMAEL ","Soraya","1972-10-04","F",null,"10340961Q","Montigny-les-Cormeilles - Võ Quyen Ðao",950112]
["SADOUNE Ariles","SADOUNE","Ariles","2001-12-06","M",null,"10780063K","Montigny-les-Cormeilles - Võ Quyen Ðao",950112]
["SIEROTA Christophe","SIEROTA","Christophe","1985-12-07","M",null,"10285750N","Montigny-les-Cormeilles - Võ Quyen Ðao",950112]
["TOUIL Fares","TOUIL","Fares","2005-04-03","M",null,"10864293P","Montigny-les-Cormeilles - Võ Quyen Ðao",950112]
["ZARGOUNI Wael","ZARGOUNI","Wael","2005-11-29","M",null,"10780132K","Montigny-les-Cormeilles - Võ Quyen Ðao",950112]
["AMM Cherley","AMM","Cherley","1992-08-15","M",null,"10480544V","Morangis - TUVB Viet VOVDao",910030]
["ARNOULT Charles","ARNOULT","Charles","2000-04-11","M",null,"10389003U","Morangis - TUVB Viet VOVDao",910030]
["BENFILA Bilal","BENFILA","Bilal","2002-12-22","M",null,"10769239U","Morangis - TUVB Viet VOVDao",910030]
["BOUSQUET Antoine","BOUSQUET","Antoine","1989-12-05","M",null,"10799279W","Morangis - TUVB Viet VOVDao",910030]
["BRUCHON Maxence","BRUCHON","Maxence","2000-10-08","M",null,"10672864P","Morangis - TUVB Viet VOVDao",910030]
["LACHERET Jonathan","LACHERET","Jonathan","1984-12-22","M",null,"10784214W","Morangis - TUVB Viet VOVDao",910030]
["LANDON Benjamin","LANDON","Benjamin","1988-12-03","M",null,"10769238T","Morangis - TUVB Viet VOVDao",910030]
["LEPETRE Nael","LEPETRE","Nael","2002-05-08","M",null,"10609523R","Morangis - TUVB Viet VOVDao",910030]
["MEGNIAN Mathéo","MEGNIAN","Mathéo","2002-10-10","M",null,"10349000N","Morangis - TUVB Viet VOVDao",910030]
["YILDIZ  Adil-Emin","YILDIZ ","Adil-Emin","2003-02-22","M",null,"10714678P","Morangis - TUVB Viet VOVDao",910030]
["AUGENSTEIN Nathan","AUGENSTEIN","Nathan","2011-04-11","M",null,"11160783L","Paris - École du Tigre Bleu",750738]
["BARLAT Jessily","BARLAT","Jessily","2011-08-10","F",null,"11160782K","Paris - École du Tigre Bleu",750738]
["BELJOUR Jessica","BELJOUR","Jessica","2011-07-16","F",null,"11160780H","Paris - École du Tigre Bleu",750738]
["DIARRA Ousseynou","DIARRA","Ousseynou","2012-11-24","M",null,"11160781J","Paris - École du Tigre Bleu",750738]
["DIARRA Sadio","DIARRA","Sadio","2010-06-30","M",null,"11072489P","Paris - École du Tigre Bleu",750738]
["HOANG XUAN MOHAMED Vinh","HOANG XUAN MOHAMED","Vinh","2008-02-13","M",null,"11155855E","Paris - École du Tigre Bleu",750738]
["LERCH DELABIE Pierre","LERCH DELABIE","Pierre","2009-11-24","M",null,"11072490Q","Paris - École du Tigre Bleu",750738]
["MONZELE Randy","MONZELE","Randy","2007-10-30","M",null,"10980659Y","Paris - École du Tigre Bleu",750738]
["BARREYRE Damien","BARREYRE","Damien","2004-07-08","M",null,"10916277T","Poissy -  École Lam Son  Pisciacaise",780717]
["BARREYRE Ondine","BARREYRE","Ondine","2006-06-07","F",null,"10916279V","Poissy -  École Lam Son  Pisciacaise",780717]
["BEN SALAH Yasmine","BEN SALAH","Yasmine","2007-09-03","F",null,"11007154X","Poissy -  École Lam Son  Pisciacaise",780717]
["BERILE Kévin","BERILE","Kévin","2004-03-30","M",null,"10885266L","Poissy -  École Lam Son  Pisciacaise",780717]
["BERILE Lucas","BERILE","Lucas","2008-03-26","M",null,"10885267M","Poissy -  École Lam Son  Pisciacaise",780717]
["BOUS Alexandre","BOUS","Alexandre","2007-12-10","M",null,"10998161X","Poissy -  École Lam Son  Pisciacaise",780717]
["BOUS Timéo","BOUS","Timéo","2013-11-02","M",null,"11160761M ","Poissy -  École Lam Son  Pisciacaise",780717]
["BRAUD Alexis","BRAUD","Alexis","2006-09-11","M",null,"11056748E","Poissy -  École Lam Son  Pisciacaise",780717]
["BRAUD Audrey","BRAUD","Audrey","1980-05-17","F",null,"11068472X","Poissy -  École Lam Son  Pisciacaise",780717]
["BRAUD Kérian","BRAUD","Kérian","2010-10-05","M",null,"11056749F","Poissy -  École Lam Son  Pisciacaise",780717]
["BREUIL Sébastien","BREUIL","Sébastien","1982-08-14","M",null,"10936636X","Poissy -  École Lam Son  Pisciacaise",780717]
["DA SILVA Julie","DA SILVA","Julie","1987-06-15","F","OUI","10538846S","Poissy -  École Lam Son  Pisciacaise",780717]
["DA SILVA Patrick","DA SILVA","Patrick","1970-12-18","M","OUI","01276167N","Poissy -  École Lam Son  Pisciacaise",780717]
["KAMMOUN Youssef","KAMMOUN","Youssef","2003-07-15","M",null,"10900526X","Poissy -  École Lam Son  Pisciacaise",780717]
["KARAOUD Soukeyna","KARAOUD","Soukeyna","2005-08-26","F",null,"11137961E ","Poissy -  École Lam Son  Pisciacaise",780717]
["KOUKPODE David","KOUKPODE","David","2008-06-26","M",null,"11156947r","Poissy -  École Lam Son  Pisciacaise",780717]
["KOUKPODE Nichifor","KOUKPODE","Nichifor","2007-03-13","M",null,"11156949T","Poissy -  École Lam Son  Pisciacaise",780717]
["KOUKPODE Simeon","KOUKPODE","Simeon","2009-09-30","M",null,"11156948S","Poissy -  École Lam Son  Pisciacaise",780717]
["LAJNEF Yacine","LAJNEF","Yacine","2007-05-08","M",null,"10907856Q","Poissy -  École Lam Son  Pisciacaise",780717]
[{"$f":"CONCATENATE(B514,\" \",C514)","v":"LOUIS FERDINAND Clyde"},"LOUIS FERDINAND","Clyde","1975-11-08","M",null,"09532701G ","Poissy -  École Lam Son  Pisciacaise",780717]
["LOUIS FERDINAND Maylo","LOUIS FERDINAND","Maylo","2008-03-04","M",null,"11096476M","Poissy -  École Lam Son  Pisciacaise",780717]
["SARAIVA-DIALLO Léana","SARAIVA-DIALLO","Léana","2008-07-14","F",null,"10990732X","Poissy -  École Lam Son  Pisciacaise",780717]
["SARAIVA-DIALLO Maély","SARAIVA-DIALLO","Maély","2011-11-25","F",null,"10990727S","Poissy -  École Lam Son  Pisciacaise",780717]
["TARTERAT Malorie","TARTERAT","Malorie","2007-04-14","F",null,"11040952K","Poissy -  École Lam Son  Pisciacaise",780717]
["TARTERAT Marvin","TARTERAT","Marvin","2010-11-07","M",null,"10990715E","Poissy -  École Lam Son  Pisciacaise",780717]
["TARTERAT Morgan","TARTERAT","Morgan","2013-08-05","M",null,"11096403H ","Poissy -  École Lam Son  Pisciacaise",780717]
["THOMAS Steven","THOMAS","Steven","1983-07-11","M",null," 10965017W ","Poissy -  École Lam Son  Pisciacaise",780717]
["VINCENT Ethan","VINCENT","Ethan","2007-02-03","M",null,"10933967W","Poissy -  École Lam Son  Pisciacaise",780717]
["VINCENT Kéran","VINCENT","Kéran","2007-02-03","M",null,"10933965U","Poissy -  École Lam Son  Pisciacaise",780717]
["VINCENT Ruben","VINCENT","Ruben","2011-09-25","M",null,"11007120L","Poissy -  École Lam Son  Pisciacaise",780717]
["VINCENT  Kéran","VINCENT ","Kéran","2007-02-03","M",null,"10933965U","Poissy -  École Lam Son  Pisciacaise",780717]
["ZINBI Wacel","ZINBI","Wacel","2005-05-27","M",null,"10982519V","Poissy -  École Lam Son  Pisciacaise",780717]
["ZWANG William","ZWANG","William","2008-01-15","M",null,"10984696M","Poissy -  École Lam Son  Pisciacaise",780717]
["BARKALLAH Adel","BARKALLAH","Adel","1994-10-11","M","OUI","10101548T","Saint Brice sous Forêt - Kim Hô",950639]
["BARKALLAH Farida","BARKALLAH","Farida","2001-02-13","F",null,"10200045F","Saint Brice sous Forêt - Kim Hô",950639]
["BARKALLAH Mehdi","BARKALLAH","Mehdi","1998-04-01","M",null,"10101547S","Saint Brice sous Forêt - Kim Hô",950639]
["BERTRAND Anthony","BERTRAND","Anthony","2001-05-08","M",null,"10327064U","Saint Brice sous Forêt - Kim Hô",950639]
["BERTRAND Théo","BERTRAND","Théo","2003-05-19","M",null,"10327063T","Saint Brice sous Forêt - Kim Hô",950639]
["BOUVIER Julien","BOUVIER","Julien","2000-12-30","M",null,"10476078R","Saint Brice sous Forêt - Kim Hô",950639]
["CARTERON Cédric","CARTERON","Cédric","1992-05-02","M",null,"09530866M","Saint Brice sous Forêt - Kim Hô",950639]
["CARTERON Myriam","CARTERON","Myriam","1992-05-02","F",null,"0950864K","Saint Brice sous Forêt - Kim Hô",950639]
["CREUS Christopher","CREUS","Christopher","1989-08-30","M","OUI","09486241G","Saint Brice sous Forêt - Kim Hô",950639]
["CREUS Éwan","CREUS","Éwan","2003-10-10","M",null,"10430284Q","Saint Brice sous Forêt - Kim Hô",950639]
["EDMOND Erwan","EDMOND","Erwan","2003-07-10","M",null,"10307317F","Saint Brice sous Forêt - Kim Hô",950639]
["FILIPCZAK Dimitri","FILIPCZAK","Dimitri","1992-09-15","M",null,"10476118K","Saint Brice sous Forêt - Kim Hô",950639]
["FONTAINE Constance","FONTAINE","Constance","2001-09-18","F",null,"10419030H","Saint Brice sous Forêt - Kim Hô",950639]
["FONTAINE Hadrien","FONTAINE","Hadrien","1998-06-23","M",null,"10419031J","Saint Brice sous Forêt - Kim Hô",950639]
["GENET Swan","GENET","Swan","2000-09-10","M",null,"10174280A","Saint Brice sous Forêt - Kim Hô",950639]
["GIRARDOT Thibaut","GIRARDOT","Thibaut","1995-07-27","M",null,"10321421L","Saint Brice sous Forêt - Kim Hô",950639]
["HEUGAS Loïc","HEUGAS","Loïc","1984-06-13","M",null,"09231241H","Saint Brice sous Forêt - Kim Hô",950639]
["JULLIEN Romain","JULLIEN","Romain","1995-03-23","M",null,"10321422M","Saint Brice sous Forêt - Kim Hô",950639]
["LABOURG Abdel","LABOURG","Abdel","1985-10-06","M","OUI","09274007S","Saint Brice sous Forêt - Kim Hô",950639]
["LEFEBVRE Samuel","LEFEBVRE","Samuel","1999-05-27","M",null,"10419032K","Saint Brice sous Forêt - Kim Hô",950639]
["MARTIN Chloé","MARTIN","Chloé","2000-02-16","F",null,"10233511G","Saint Brice sous Forêt - Kim Hô",950639]
["NYEMB Jonas Hervé","NYEMB","Jonas Hervé","1976-07-13","M","OUI","09530880C","Saint Brice sous Forêt - Kim Hô",950639]
["ORBAN Bruno","ORBAN","Bruno","1964-09-10","M","OUI","09013463S","Saint Brice sous Forêt - Kim Hô",950639]
["PHILIPPY Ludovic","PHILIPPY","Ludovic","1978-07-22","M","OUI","09020334L","Saint Brice sous Forêt - Kim Hô",950639]
["SALFATI Louis","SALFATI","Louis","2004-01-22","M",null,"10101488D","Saint Brice sous Forêt - Kim Hô",950639]
["SALFATI Marc-Antoine","SALFATI","Marc-Antoine","2004-01-22","M",null,"10419001B","Saint Brice sous Forêt - Kim Hô",950639]
["SURENA Évan","SURENA","Évan","2002-04-04","M",null,"10401858S","Saint Brice sous Forêt - Kim Hô",950639]
["TAVARES Bryan","TAVARES","Bryan","1990-07-27","M","OUI","10313925N","Saint Brice sous Forêt - Kim Hô",950639]
["TIRADO Sébastien","TIRADO","Sébastien","1981-12-21","M","OUI","09479207L","Saint Brice sous Forêt - Kim Hô",950639]
["BORGO Michel","BORGO","Michel","1989-07-05","M","OUI","09267647E","Saint-Gratien",950677]
["BUICANGES Simon","BUICANGES","Simon","1987-03-14","M","OUI","09601531W","Saint-Gratien",950677]
["FILEMON Alexandre","FILEMON","Alexandre","1994-09-20","M",null,"09266878T","Saint-Gratien",950677]
["GERARD Christophe","GERARD","Christophe","1980-12-14","M","OUI","10117759P","Saint-Gratien",950677]
["LAKAS Charles","LAKAS","Charles","1989-05-14","M",null,"10436906N","Saint-Gratien",950677]
["NIKOLOV Romain","NIKOLOV","Romain","1993-10-24","M",null,"09502698U","Saint-Gratien",950677]
["PERRON Sébastien","PERRON","Sébastien","1989-01-30","M","OUI","09036436N","Saint-Gratien",950677]
["RODRIGUEZ Anthony","RODRIGUEZ","Anthony","1975-01-14","M","OUI","10065435Q","Saint-Gratien",950677]
["SAPALY Fabien","SAPALY","Fabien","1984-04-09","M","OUI","10047055M","Saint-Gratien",950677]
["COUCHEVELLOU Florian","COUCHEVELLOU","Florian","1999-03-15","M",null,"10112666D","SONG HO",140620]
["DUCHESNE Olivia","DUCHESNE","Olivia","1999-01-15","F",null,"10112690E","SONG HO",140620]
["PAIS OLIVEIRA Eddy","PAIS OLIVEIRA","Eddy","1989-08-12","M","OUI","10062895E","SONG HO",140620]
["SADIER Benjamin","SADIER","Benjamin","1999-08-23","M",null,"09555654f","SONG HO",140620]
["ACHIMBI Lenny","ACHIMBI","Lenny","2010-10-05","M",null,"11037640K","Suresnes - Võ Cổ Truyền Suresnes",920604]
["ACHIMBI Lenny","ACHIMBI","Lenny","05/10/2010","M",null,"11037640K","Suresnes - Võ Cổ Truyền Suresnes",920604]
["ACHIMBI Tehan","ACHIMBI","Tehan","2007-11-02","M",null,"11037638H","Suresnes - Võ Cổ Truyền Suresnes",920604]
["ACHIMBI Tehan","ACHIMBI","Tehan","02/11/2007","M",null,"11037638H","Suresnes - Võ Cổ Truyền Suresnes",920604]
["ANGOSTON Kelvin","ANGOSTON","Kelvin","1997-10-22","M",null,"10292881P","Suresnes - Võ Cổ Truyền Suresnes",920604]
["ARZUR Mattew","ARZUR","Mattew","1998-07-04","M",null,"10575518D","Suresnes - Võ Cổ Truyền Suresnes",920604]
["ARZUR Maxime","ARZUR","Maxime","2002-04-19","M",null,"10575527N","Suresnes - Võ Cổ Truyền Suresnes",920604]
["ARZUR Thomas","ARZUR","Thomas","1996-06-06","M","OUI","10404080H","Suresnes - Võ Cổ Truyền Suresnes",920604]
[{"$f":"CONCATENATE(B578,\" \",C578)","v":"BARRIOZ Kévin"},"BARRIOZ","Kévin","1999-11-10","M",null,"10663040L","Suresnes - Võ Cổ Truyền Suresnes",920604]
["BERRIER Fabien","BERRIER","Fabien","1982-04-25","M","OUI","10282900Q","Suresnes - Võ Cổ Truyền Suresnes",920604]
["BLAISE Guillaume","BLAISE","Guillaume","1991-10-23","M",null,"10321033P","Suresnes - Võ Cổ Truyền Suresnes",920604]
["BODENES Nicolas","BODENES","Nicolas","1995-12-07","M",null,"10282889D","Suresnes - Võ Cổ Truyền Suresnes",920604]
["BONNOT Raphaël","BONNOT","Raphaël","1999-12-21","M",null,"10575532U","Suresnes - Võ Cổ Truyền Suresnes",920604]
["BOUALI Rayan","BOUALI","Rayan","1998-04-15","M",null,"10090120W","Suresnes - Võ Cổ Truyền Suresnes",920604]
["BUCAN Laurian","BUCAN","Laurian","2008-07-21","M",null,"10799302W","Suresnes - Võ Cổ Truyền Suresnes",920604]
["BUCAN Lilian","BUCAN","Lilian","2004-12-30","M",null,"10799303X","Suresnes - Võ Cổ Truyền Suresnes",920604]
["CAILLÉ Marine","CAILLÉ","Marine","2006-10-20","F",null,"10663042N","Suresnes - Võ Cổ Truyền Suresnes",920604]
["CAILLÉ Mathieu","CAILLÉ","Mathieu","2004-10-20","M",null,"10466946Q","Suresnes - Võ Cổ Truyền Suresnes",920604]
["CHEMEL Pierre","CHEMEL","Pierre","1997-10-29","M",null,"10731742M","Suresnes - Võ Cổ Truyền Suresnes",920604]
["DE  MALEK Ludovic","DE  MALEK","Ludovic","21/01/1973","M",null,"11037635E","Suresnes - Võ Cổ Truyền Suresnes",920604]
["DE MALET LUDOVIC","DE MALET","LUDOVIC","1973-01-21","M",null,"11037635E","Suresnes - Võ Cổ Truyền Suresnes",920604]
["DECHEZELLES Hugo","DECHEZELLES","Hugo","1997-01-09","M",null,"10466960F","Suresnes - Võ Cổ Truyền Suresnes",920604]
["DECHEZELLES Lucas","DECHEZELLES","Lucas","1997-01-09","M",null,"10466958D","Suresnes - Võ Cổ Truyền Suresnes",920604]
["DERMOUM Hassiba","DERMOUM","Hassiba","1971-07-08","F",null,"10746150X","Suresnes - Võ Cổ Truyền Suresnes",920604]
["DERMOUM NOHAME","DERMOUM","NOHAME","2008-01-03","M",null,"10895025T","Suresnes - Võ Cổ Truyền Suresnes",920604]
["DERMOUM Souleymane","DERMOUM","Souleymane","2007-01-14","M",null,"10844048J","Suresnes - Võ Cổ Truyền Suresnes",920604]
["DESCOUTS Calvin","DESCOUTS","Calvin","1993-01-01","M",null,"10321020A","Suresnes - Võ Cổ Truyền Suresnes",920604]
["DEVILLE Julie","DEVILLE","Julie","26/07/2007","F",null,"10902673G","Suresnes - Võ Cổ Truyền Suresnes",920604]
["DONCK Célia","DONCK","Célia","1997-07-17","F",null,"10434312T","Suresnes - Võ Cổ Truyền Suresnes",920604]
["DONCK Laura","DONCK","Laura","08/09/2000","F",null,"10892842V","Suresnes - Võ Cổ Truyền Suresnes",920604]
["DUBIEF Sylvain","DUBIEF","Sylvain","1985-11-29","M",null,"10404064Q","Suresnes - Võ Cổ Truyền Suresnes",920604]
["DUTERTRE Florian","DUTERTRE","Florian","2003-09-13","M",null,"10976167R","Suresnes - Võ Cổ Truyền Suresnes",920604]
["DUTERTRE Florian","DUTERTRE","Florian","13/09/2003","M",null,"10976167R","Suresnes - Võ Cổ Truyền Suresnes",920604]
["ESTEVE Sacha","ESTEVE","Sacha","2000-02-27","M",null,"10205909E","Suresnes - Võ Cổ Truyền Suresnes",920604]
["FONTANT Diane","FONTANT","Diane","2001-10-30","F",null,"10282893F","Suresnes - Võ Cổ Truyền Suresnes",920604]
["FONTANT Marie","FONTANT","Marie","1996-03-05","F",null,"10282892G","Suresnes - Võ Cổ Truyền Suresnes",920604]
["FONTANT Solène","FONTANT","Solène","1998-06-25","F",null,"10282893H","Suresnes - Võ Cổ Truyền Suresnes",920604]
["FORTIN Florian","FORTIN","Florian","2001-04-19","M",null,"10663054B","Suresnes - Võ Cổ Truyền Suresnes",920604]
["GALLET Emma","GALLET","Emma","2000-10-02","F",null,"11024532M","Suresnes - Võ Cổ Truyền Suresnes",920604]
["GALLET Emma","GALLET","Emma","02/10/2000","F",null,"11024532M","Suresnes - Võ Cổ Truyền Suresnes",920604]
["GENET Jérôme","GENET","Jérôme","1973-07-13","M",null,"10113194C","Suresnes - Võ Cổ Truyền Suresnes",920604]
["GILLET HUYNH Mattéo","GILLET HUYNH","Mattéo","2009-10-09","M",null,"11037646R","Suresnes - Võ Cổ Truyền Suresnes",920604]
["GILLET HUYNH Mattéo","GILLET HUYNH","Mattéo","09/10/2009","M",null,"11037646R","Suresnes - Võ Cổ Truyền Suresnes",920604]
["GONZALEZ Thomas","GONZALEZ","Thomas","1988-09-29","M",null,"10416150C","Suresnes - Võ Cổ Truyền Suresnes",920604]
["GRAND Mayling","GRAND","Mayling","1999-01-20","F",null,"10282895K","Suresnes - Võ Cổ Truyền Suresnes",920604]
["GRAND Oscar","GRAND","Oscar","1996-04-23","M","OUI","10282897M","Suresnes - Võ Cổ Truyền Suresnes",920604]
["GRANDGUILLOT Sirine","GRANDGUILLOT","Sirine","28/06/2003","F",null,"11024535Q","Suresnes - Võ Cổ Truyền Suresnes",920604]
["GUILLEMOT Hélène","GUILLEMOT","Hélène","14/04/1986","F",null,"11044609K","Suresnes - Võ Cổ Truyền Suresnes",920604]
["GUYEN Kynaan","GUYEN","Kynaan","2011-01-03","M",null,"11037636F","Suresnes - Võ Cổ Truyền Suresnes",920604]
["GUYEN Kynaan","GUYEN","Kynaan","03/01/2011","M",null,"11037636F","Suresnes - Võ Cổ Truyền Suresnes",920604]
["GUYEN Lennon","GUYEN","Lennon","2012-02-15","M",null,"11037637G","Suresnes - Võ Cổ Truyền Suresnes",920604]
["GUYEN Lennon","GUYEN","Lennon","15/02/2012","M",null,"11037637G","Suresnes - Võ Cổ Truyền Suresnes",920604]
["HAMLI Mohamed","HAMLI","Mohamed","2000-08-25","M",null,"10452224N","Suresnes - Võ Cổ Truyền Suresnes",920604]
["HAUTIN Paul","HAUTIN","Paul","2002-11-20","M",null,"10434313U","Suresnes - Võ Cổ Truyền Suresnes",920604]
["HOUEL David","HOUEL","David","18/04/1983","M",null,"11037633C","Suresnes - Võ Cổ Truyền Suresnes",920604]
["HOURS Alexis","HOURS","Alexis","1993-01-04","M",null,"09624326Y","Suresnes - Võ Cổ Truyền Suresnes",920604]
["HOURS Anne-Laure","HOURS","Anne-Laure","1998-05-11","F",null,"09624325X","Suresnes - Võ Cổ Truyền Suresnes",920604]
["HOUSSARD Dimitri","HOUSSARD","Dimitri","1985-05-02","M","OUI","09478139A","Suresnes - Võ Cổ Truyền Suresnes",920604]
["JOVINAC Anne-Sophie","JOVINAC","Anne-Sophie","1996-04-04","F",null,"11159275W","Suresnes - Võ Cổ Truyền Suresnes",920604]
["KARKENI Nevine","KARKENI","Nevine","2004-10-15","F",null,"10663014H","Suresnes - Võ Cổ Truyền Suresnes",920604]
["LEWIS Matt","LEWIS","Matt","2011-03-22","M",null,"11037643N","Suresnes - Võ Cổ Truyền Suresnes",920604]
["LEWIS Matt","LEWIS","Matt","22/03/2011","M",null,"11037643N","Suresnes - Võ Cổ Truyền Suresnes",920604]
["MAROUK Salaheddine","MAROUK","Salaheddine","2007-10-09","M",null,"10945796E","Suresnes - Võ Cổ Truyền Suresnes",920604]
["MAROUK Salaheddine","MAROUK","Salaheddine","09/10/2007","M",null,"10945796E","Suresnes - Võ Cổ Truyền Suresnes",920604]
["MARTIN DEVILLIER Linhoi Sinh","MARTIN DEVILLIER","Linhoi Sinh","22/10/2005","M",null,"11037641L","Suresnes - Võ Cổ Truyền Suresnes",920604]
["MOUGEN Wassim","MOUGEN","Wassim","2003-10-05","M",null,"10506589F","Suresnes - Võ Cổ Truyền Suresnes",920604]
["MOUHAJIR Adil","MOUHAJIR","Adil","2002-08-06","M",null,"10731736F","Suresnes - Võ Cổ Truyền Suresnes",920604]
["MOUHAJIR Nelya","MOUHAJIR","Nelya","28/11/2011","F",null,"11069224Q","Suresnes - Võ Cổ Truyền Suresnes",920604]
["MOUHAJIR Wassim","MOUHAJIR","Wassim","2008-03-14","M",null,"10830952Y","Suresnes - Võ Cổ Truyền Suresnes",920604]
["MOUHAJIR Yassere","MOUHAJIR","Yassere","2002-09-13","M",null,"10731738H","Suresnes - Võ Cổ Truyền Suresnes",920604]
["MOUHAJIR  Jenna","MOUHAJIR ","Jenna","2009-10-28","F",null,"11066023L","Suresnes - Võ Cổ Truyền Suresnes",920604]
["MOUHAJIR  Jenna","MOUHAJIR ","Jenna","28/10/2009","F",null,"11066023L","Suresnes - Võ Cổ Truyền Suresnes",920604]
[{"$f":"CONCATENATE(B642,\" \",C642)","v":"MOUKNECHE Elyes"},"MOUKNECHE","Elyes","19/08/2009","M",null,"11037632B","Suresnes - Võ Cổ Truyền Suresnes",920604]
["MUZZOLINI Andréa","MUZZOLINI","Andréa","2007-10-03","M",null,"10794403W","Suresnes - Võ Cổ Truyền Suresnes",920604]
["NIDBOUGMANE Sara","NIDBOUGMANE","Sara","2006-02-27","F",null,"10676673E","Suresnes - Võ Cổ Truyền Suresnes",920604]
["NIDBOUGMANE Yasmine","NIDBOUGMANE","Yasmine","2002-04-29","F",null,"10355182H","Suresnes - Võ Cổ Truyền Suresnes",920604]
["OCCELI Franck","OCCELI","Franck","24/07/1991","M",null,"11044610L","Suresnes - Võ Cổ Truyền Suresnes",920604]
["PHERON Ryan","PHERON","Ryan","2000-05-24","M",null,"10849350W","Suresnes - Võ Cổ Truyền Suresnes",920604]
["PHERON Yanniss","PHERON","Yanniss","1998-02-08","M",null,"10776962P","Suresnes - Võ Cổ Truyền Suresnes",920604]
["PLANCHE Olivier","PLANCHE","Olivier","1983-06-11","M","OUI","01489079P","Suresnes - Võ Cổ Truyền Suresnes",920604]
["POIRIER Alexandre","POIRIER","Alexandre","1997-02-18","M",null,"10213753F","Suresnes - Võ Cổ Truyền Suresnes",920604]
["POIRIER Nicolas","POIRIER","Nicolas","1999-03-22","M",null,"10221723T","Suresnes - Võ Cổ Truyền Suresnes",920604]
["PREMET Cédric","PREMET","Cédric","1993-08-14","M",null,"10278140R","Suresnes - Võ Cổ Truyền Suresnes",920604]
["QUEMIN Arthur","QUEMIN","Arthur","2007-12-23","M",null,"10869765M","Suresnes - Võ Cổ Truyền Suresnes",920604]
["QUEMIN Maude","QUEMIN","Maude","1996-12-02","F","OUI","10506642N","Suresnes - Võ Cổ Truyền Suresnes",920604]
["RONFAULT Émilie","RONFAULT","Émilie","18/08/1987","F",null,"11024538T","Suresnes - Võ Cổ Truyền Suresnes",920604]
["ROUXEL Marie","ROUXEL","Marie","1996-08-26","F",null,"10506645R","Suresnes - Võ Cổ Truyền Suresnes",920604]
["SENG Molina","SENG","Molina","1983-04-24","F",null,"10136986N","Suresnes - Võ Cổ Truyền Suresnes",920604]
["TARDIF Alexis","TARDIF","Alexis","2001-07-02","M",null,"11024540V","Suresnes - Võ Cổ Truyền Suresnes",920604]
["THRO Ilian","THRO","Ilian","2006-02-27","M",null,"10830956D","Suresnes - Võ Cổ Truyền Suresnes",920604]
["THRO Ilian","THRO","Ilian","27/02/2006","M",null,"10830956D","Suresnes - Võ Cổ Truyền Suresnes",920604]
["THRO Sirine","THRO","Sirine","2004-08-27","F",null,"11037645Q","Suresnes - Võ Cổ Truyền Suresnes",920604]
["THRO Sirine","THRO","Sirine","27/08/2004","F",null,"11037645Q","Suresnes - Võ Cổ Truyền Suresnes",920604]
["TRINH-VAN Léo","TRINH-VAN","Léo","1999-06-03","M",null,"10296717J","Suresnes - Võ Cổ Truyền Suresnes",920604]
["VU Christiane","VU","Christiane","1973-09-07","F",null,"10362644T","Suresnes - Võ Cổ Truyền Suresnes",920604]
["VU Christiane","VU","Christiane","07/09/1973","F",null,"10362644T","Suresnes - Võ Cổ Truyền Suresnes",920604]
["VURPILLAT Audrey","VURPILLAT","Audrey","01/01/1900","F",null,"10286709F","Suresnes - Võ Cổ Truyền Suresnes",920604]
["WARGNIER Hugo","WARGNIER","Hugo","1997-11-01","M",null,"10506553R","Suresnes - Võ Cổ Truyền Suresnes",920604]
["WARGNIER Robin","WARGNIER","Robin","1999-11-10","M",null,"10506551P","Suresnes - Võ Cổ Truyền Suresnes",920604]
["EL FATH YOUCEF","EL FATH","YOUCEF","2011-04-13","M",null," 10846864U","Verrières Le Buisson - TUVB Viet Vo Dao",91370]
["FERREIRA HUGO","FERREIRA","HUGO","2011-04-22","M",null,"10937375B","Verrières Le Buisson - TUVB Viet Vo Dao",91370]
["HYLAND THOMAS","HYLAND","THOMAS","2010-12-18","M",null,"10937372X","Verrières Le Buisson - TUVB Viet Vo Dao",91370]
["TEJJINI AYMAN","TEJJINI","AYMAN","2000-10-02","M",null,"10785292T","Verrières Le Buisson - TUVB Viet Vo Dao",91370]
["TEJJINI MOHAMED","TEJJINI","MOHAMED","2003-08-10","M",null,"10785295W","Verrières Le Buisson - TUVB Viet Vo Dao",91370]
["VAN HEYNINIGEN ETHAN","VAN HEYNINIGEN","ETHAN","2010-02-19","M",null,"10969458Y","Verrières Le Buisson - TUVB Viet Vo Dao",91370]